{"text_format":"1","workbook":"xlsx","n_sheets":3,"sheets":["!","@","Options"],"not_rendered":{"charts":1,"images":1,"macros":1,"external_links":0,"defined_names":17,"comments":0,"pivot_tables":0},"unopened":[],"bounds":{"document_bytes":16777216,"sheet_cells":100000,"rows_first":2000,"rows_last":500,"rows_between":2000,"halvings":0,"cell_chars":16384,"cell_head_chars":4096},"cells_cut":0,"cells_raw":0,"read":"whole","date_system":"1900"}

{"sheet":"!","index":0,"n_rows":31,"n_cols":3,"rows_kept":31,"cut":false,"hidden":false,"merged":[[22,2,22,12],[24,2,24,12],[26,2,26,12],[28,2,28,12],[30,2,30,12]]}
[]
[]
[]
[]
[]
[]
[]
[]
[]
[]
[]
[]
[]
[]
[]
[]
[]
[]
[]
[]
[]
[]
[null,null,{"$f":"QUESTION_1","v":""}]
[]
[null,null,{"$f":"QUESTION_2","v":""}]
[]
[null,null,{"$f":"QUESTION_3","v":""}]
[]
[null,null,{"$f":"QUESTION_4","v":""}]
[]
[null,null,{"$f":"QUESTION_5","v":""}]

{"sheet":"@","index":1,"n_rows":185,"n_cols":19,"rows_kept":185,"cut":false,"hidden":false,"merged":[[184,2,184,17],[178,2,178,17],[179,2,179,17],[180,2,180,17],[181,2,181,17],[182,2,182,17],[183,2,183,17],[166,2,166,17],[167,2,167,17],[168,2,168,17],[169,2,169,17],[170,2,170,17],[171,2,171,17],[174,2,174,17],[175,2,175,17],[176,2,176,17],[177,2,177,17],[172,2,172,17],[173,2,173,17],[119,2,119,17],[120,2,120,17],[121,2,121,17],[122,2,122,17],[123,2,123,17],[154,2,154,17],[155,2,155,17],[156,2,156,17],[157,2,157,17],[142,2,142,17],[143,2,143,17],[144,2,144,17],[145,2,145,17],[146,2,146,17],[147,2,147,17],[148,2,148,17],[149,2,149,17],[139,2,139,17],[140,2,140,17],[141,2,141,17],[136,2,136,17],[137,2,137,17],[126,2,126,17],[127,2,127,17],[111,2,111,17],[94,2,94,17],[95,2,95,17],[96,2,96,17],[97,2,97,17],[98,2,98,17],[99,2,99,17],[100,2,100,17],[101,2,101,17],[106,2,106,17],[107,2,107,17],[108,2,108,17],[109,2,109,17],[110,2,110,17],[49,2,49,17],[50,2,50,17],[51,2,51,17],[52,2,52,17],[53,2,53,17],[82,2,82,17],[83,2,83,17],[84,2,84,17],[85,2,85,17],[70,2,70,17],[71,2,71,17],[72,2,72,17],[73,2,73,17],[74,2,74,17],[75,2,75,17],[76,2,76,17],[77,2,77,17],[54,2,54,17],[55,2,55,17],[56,2,56,17],[57,2,57,17],[58,2,58,17],[59,2,59,17],[60,2,60,17],[162,2,162,17],[163,2,163,17],[164,2,164,17],[165,2,165,17],[160,2,160,17],[161,2,161,17],[150,2,150,17],[151,2,151,17],[152,2,152,17],[153,2,153,17],[158,2,158,17],[159,2,159,17],[129,2,129,17],[124,2,124,17],[125,2,125,17],[130,2,130,17],[131,2,131,17],[132,2,132,17],[133,2,133,17],[134,2,134,17],[135,2,135,17],[90,2,90,17],[91,2,91,17],[92,2,92,17],[93,2,93,17],[88,2,88,17],[89,2,89,17],[78,2,78,17],[79,2,79,17],[80,2,80,17],[81,2,81,17],[61,2,61,17],[62,2,62,17],[63,2,63,17],[86,2,86,17],[87,2,87,17],[118,2,118,17],[128,2,128,17],[138,2,138,17],[66,2,66,17],[67,2,67,17],[68,2,68,17],[69,2,69,17],[64,2,64,17],[65,2,65,17],[114,2,114,17],[115,2,115,17],[116,2,116,17],[117,2,117,17],[112,2,112,17],[113,2,113,17],[102,2,102,17],[104,2,104,17],[105,2,105,17],[103,2,103,17]]}
[]
[]
[]
[]
[]
[]
[]
[]
[]
[]
[]
[]
[]
[]
[]
[]
[]
[]
[]
[]
[]
[]
[]
[]
[]
[null,null,"Стили","Оценка"]
[null,null,"«Внимание к производительности труда»",{"$f":"Options!E18","v":0}]
[null,null,"«Внимание к работе»",{"$f":"Options!E19","v":0}]
[null,null,"«Внимание к человеку»",{"$f":"Options!E20","v":0}]
[]
[]
[]
[]
[]
[]
[]
[]
[]
[]
[]
[]
[]
[]
[]
[]
[]
[]
[]
[]
[null,"№ п/п","Вопрос",null,null,null,null,null,null,null,null,null,null,null,null,null,null,null,"% ответов"]
[null,{"$f":"IF(VIEW_REZULTS,IF(Options!B25<>Options!B24,Options!B25,\"\"),\"\")","v":""},{"$f":"IF(VIEW_REZULTS,Options!C25,\"\")","v":""},null,null,null,null,null,null,null,null,null,null,null,null,null,null,null,{"$f":"IF(VIEW_REZULTS,Options!G25,\"\")","v":""}]
[null,{"$f":"IF(VIEW_REZULTS,IF(Options!B26<>Options!B25,Options!B26,\"\"),\"\")","v":""},{"$f":"IF(VIEW_REZULTS,Options!C26,\"\")","v":""},null,null,null,null,null,null,null,null,null,null,null,null,null,null,null,{"$f":"IF(VIEW_REZULTS,Options!G26,\"\")","v":""}]
[null,{"$f":"IF(VIEW_REZULTS,IF(Options!B27<>Options!B26,Options!B27,\"\"),\"\")","v":""},{"$f":"IF(VIEW_REZULTS,Options!C27,\"\")","v":""},null,null,null,null,null,null,null,null,null,null,null,null,null,null,null,{"$f":"IF(VIEW_REZULTS,Options!G27,\"\")","v":""}]
[null,{"$f":"IF(VIEW_REZULTS,IF(Options!B28<>Options!B27,Options!B28,\"\"),\"\")","v":""},{"$f":"IF(VIEW_REZULTS,Options!C28,\"\")","v":""},null,null,null,null,null,null,null,null,null,null,null,null,null,null,null,{"$f":"IF(VIEW_REZULTS,Options!G28,\"\")","v":""}]
[null,{"$f":"IF(VIEW_REZULTS,IF(Options!B29<>Options!B28,Options!B29,\"\"),\"\")","v":""},{"$f":"IF(VIEW_REZULTS,Options!C29,\"\")","v":""},null,null,null,null,null,null,null,null,null,null,null,null,null,null,null,{"$f":"IF(VIEW_REZULTS,Options!G29,\"\")","v":""}]
[null,{"$f":"IF(VIEW_REZULTS,IF(Options!B30<>Options!B29,Options!B30,\"\"),\"\")","v":""},{"$f":"IF(VIEW_REZULTS,Options!C30,\"\")","v":""},null,null,null,null,null,null,null,null,null,null,null,null,null,null,null,{"$f":"IF(VIEW_REZULTS,Options!G30,\"\")","v":""}]
[null,{"$f":"IF(VIEW_REZULTS,IF(Options!B31<>Options!B30,Options!B31,\"\"),\"\")","v":""},{"$f":"IF(VIEW_REZULTS,Options!C31,\"\")","v":""},null,null,null,null,null,null,null,null,null,null,null,null,null,null,null,{"$f":"IF(VIEW_REZULTS,Options!G31,\"\")","v":""}]
[null,{"$f":"IF(VIEW_REZULTS,IF(Options!B32<>Options!B31,Options!B32,\"\"),\"\")","v":""},{"$f":"IF(VIEW_REZULTS,Options!C32,\"\")","v":""},null,null,null,null,null,null,null,null,null,null,null,null,null,null,null,{"$f":"IF(VIEW_REZULTS,Options!G32,\"\")","v":""}]
[null,{"$f":"IF(VIEW_REZULTS,IF(Options!B33<>Options!B32,Options!B33,\"\"),\"\")","v":""},{"$f":"IF(VIEW_REZULTS,Options!C33,\"\")","v":""},null,null,null,null,null,null,null,null,null,null,null,null,null,null,null,{"$f":"IF(VIEW_REZULTS,Options!G33,\"\")","v":""}]
[null,{"$f":"IF(VIEW_REZULTS,IF(Options!B34<>Options!B33,Options!B34,\"\"),\"\")","v":""},{"$f":"IF(VIEW_REZULTS,Options!C34,\"\")","v":""},null,null,null,null,null,null,null,null,null,null,null,null,null,null,null,{"$f":"IF(VIEW_REZULTS,Options!G34,\"\")","v":""}]
[null,{"$f":"IF(VIEW_REZULTS,IF(Options!B35<>Options!B34,Options!B35,\"\"),\"\")","v":""},{"$f":"IF(VIEW_REZULTS,Options!C35,\"\")","v":""},null,null,null,null,null,null,null,null,null,null,null,null,null,null,null,{"$f":"IF(VIEW_REZULTS,Options!G35,\"\")","v":""}]
[null,{"$f":"IF(VIEW_REZULTS,IF(Options!B36<>Options!B35,Options!B36,\"\"),\"\")","v":""},{"$f":"IF(VIEW_REZULTS,Options!C36,\"\")","v":""},null,null,null,null,null,null,null,null,null,null,null,null,null,null,null,{"$f":"IF(VIEW_REZULTS,Options!G36,\"\")","v":""}]
[null,{"$f":"IF(VIEW_REZULTS,IF(Options!B37<>Options!B36,Options!B37,\"\"),\"\")","v":""},{"$f":"IF(VIEW_REZULTS,Options!C37,\"\")","v":""},null,null,null,null,null,null,null,null,null,null,null,null,null,null,null,{"$f":"IF(VIEW_REZULTS,Options!G37,\"\")","v":""}]
[null,{"$f":"IF(VIEW_REZULTS,IF(Options!B38<>Options!B37,Options!B38,\"\"),\"\")","v":""},{"$f":"IF(VIEW_REZULTS,Options!C38,\"\")","v":""},null,null,null,null,null,null,null,null,null,null,null,null,null,null,null,{"$f":"IF(VIEW_REZULTS,Options!G38,\"\")","v":""}]
[null,{"$f":"IF(VIEW_REZULTS,IF(Options!B39<>Options!B38,Options!B39,\"\"),\"\")","v":""},{"$f":"IF(VIEW_REZULTS,Options!C39,\"\")","v":""},null,null,null,null,null,null,null,null,null,null,null,null,null,null,null,{"$f":"IF(VIEW_REZULTS,Options!G39,\"\")","v":""}]
[null,{"$f":"IF(VIEW_REZULTS,IF(Options!B40<>Options!B39,Options!B40,\"\"),\"\")","v":""},{"$f":"IF(VIEW_REZULTS,Options!C40,\"\")","v":""},null,null,null,null,null,null,null,null,null,null,null,null,null,null,null,{"$f":"IF(VIEW_REZULTS,Options!G40,\"\")","v":""}]
[null,{"$f":"IF(VIEW_REZULTS,IF(Options!B41<>Options!B40,Options!B41,\"\"),\"\")","v":""},{"$f":"IF(VIEW_REZULTS,Options!C41,\"\")","v":""},null,null,null,null,null,null,null,null,null,null,null,null,null,null,null,{"$f":"IF(VIEW_REZULTS,Options!G41,\"\")","v":""}]
[null,{"$f":"IF(VIEW_REZULTS,IF(Options!B42<>Options!B41,Options!B42,\"\"),\"\")","v":""},{"$f":"IF(VIEW_REZULTS,Options!C42,\"\")","v":""},null,null,null,null,null,null,null,null,null,null,null,null,null,null,null,{"$f":"IF(VIEW_REZULTS,Options!G42,\"\")","v":""}]
[null,{"$f":"IF(VIEW_REZULTS,IF(Options!B43<>Options!B42,Options!B43,\"\"),\"\")","v":""},{"$f":"IF(VIEW_REZULTS,Options!C43,\"\")","v":""},null,null,null,null,null,null,null,null,null,null,null,null,null,null,null,{"$f":"IF(VIEW_REZULTS,Options!G43,\"\")","v":""}]
[null,{"$f":"IF(VIEW_REZULTS,IF(Options!B44<>Options!B43,Options!B44,\"\"),\"\")","v":""},{"$f":"IF(VIEW_REZULTS,Options!C44,\"\")","v":""},null,null,null,null,null,null,null,null,null,null,null,null,null,null,null,{"$f":"IF(VIEW_REZULTS,Options!G44,\"\")","v":""}]
[null,{"$f":"IF(VIEW_REZULTS,IF(Options!B45<>Options!B44,Options!B45,\"\"),\"\")","v":""},{"$f":"IF(VIEW_REZULTS,Options!C45,\"\")","v":""},null,null,null,null,null,null,null,null,null,null,null,null,null,null,null,{"$f":"IF(VIEW_REZULTS,Options!G45,\"\")","v":""}]
[null,{"$f":"IF(VIEW_REZULTS,IF(Options!B46<>Options!B45,Options!B46,\"\"),\"\")","v":""},{"$f":"IF(VIEW_REZULTS,Options!C46,\"\")","v":""},null,null,null,null,null,null,null,null,null,null,null,null,null,null,null,{"$f":"IF(VIEW_REZULTS,Options!G46,\"\")","v":""}]
[null,{"$f":"IF(VIEW_REZULTS,IF(Options!B47<>Options!B46,Options!B47,\"\"),\"\")","v":""},{"$f":"IF(VIEW_REZULTS,Options!C47,\"\")","v":""},null,null,null,null,null,null,null,null,null,null,null,null,null,null,null,{"$f":"IF(VIEW_REZULTS,Options!G47,\"\")","v":""}]
[null,{"$f":"IF(VIEW_REZULTS,IF(Options!B48<>Options!B47,Options!B48,\"\"),\"\")","v":""},{"$f":"IF(VIEW_REZULTS,Options!C48,\"\")","v":""},null,null,null,null,null,null,null,null,null,null,null,null,null,null,null,{"$f":"IF(VIEW_REZULTS,Options!G48,\"\")","v":""}]
[null,{"$f":"IF(VIEW_REZULTS,IF(Options!B49<>Options!B48,Options!B49,\"\"),\"\")","v":""},{"$f":"IF(VIEW_REZULTS,Options!C49,\"\")","v":""},null,null,null,null,null,null,null,null,null,null,null,null,null,null,null,{"$f":"IF(VIEW_REZULTS,Options!G49,\"\")","v":""}]
[null,{"$f":"IF(VIEW_REZULTS,IF(Options!B50<>Options!B49,Options!B50,\"\"),\"\")","v":""},{"$f":"IF(VIEW_REZULTS,Options!C50,\"\")","v":""},null,null,null,null,null,null,null,null,null,null,null,null,null,null,null,{"$f":"IF(VIEW_REZULTS,Options!G50,\"\")","v":""}]
[null,{"$f":"IF(VIEW_REZULTS,IF(Options!B51<>Options!B50,Options!B51,\"\"),\"\")","v":""},{"$f":"IF(VIEW_REZULTS,Options!C51,\"\")","v":""},null,null,null,null,null,null,null,null,null,null,null,null,null,null,null,{"$f":"IF(VIEW_REZULTS,Options!G51,\"\")","v":""}]
[null,{"$f":"IF(VIEW_REZULTS,IF(Options!B52<>Options!B51,Options!B52,\"\"),\"\")","v":""},{"$f":"IF(VIEW_REZULTS,Options!C52,\"\")","v":""},null,null,null,null,null,null,null,null,null,null,null,null,null,null,null,{"$f":"IF(VIEW_REZULTS,Options!G52,\"\")","v":""}]
[null,{"$f":"IF(VIEW_REZULTS,IF(Options!B53<>Options!B52,Options!B53,\"\"),\"\")","v":""},{"$f":"IF(VIEW_REZULTS,Options!C53,\"\")","v":""},null,null,null,null,null,null,null,null,null,null,null,null,null,null,null,{"$f":"IF(VIEW_REZULTS,Options!G53,\"\")","v":""}]
[null,{"$f":"IF(VIEW_REZULTS,IF(Options!B54<>Options!B53,Options!B54,\"\"),\"\")","v":""},{"$f":"IF(VIEW_REZULTS,Options!C54,\"\")","v":""},null,null,null,null,null,null,null,null,null,null,null,null,null,null,null,{"$f":"IF(VIEW_REZULTS,Options!G54,\"\")","v":""}]
[null,{"$f":"IF(VIEW_REZULTS,IF(Options!B55<>Options!B54,Options!B55,\"\"),\"\")","v":""},{"$f":"IF(VIEW_REZULTS,Options!C55,\"\")","v":""},null,null,null,null,null,null,null,null,null,null,null,null,null,null,null,{"$f":"IF(VIEW_REZULTS,Options!G55,\"\")","v":""}]
[null,{"$f":"IF(VIEW_REZULTS,IF(Options!B56<>Options!B55,Options!B56,\"\"),\"\")","v":""},{"$f":"IF(VIEW_REZULTS,Options!C56,\"\")","v":""},null,null,null,null,null,null,null,null,null,null,null,null,null,null,null,{"$f":"IF(VIEW_REZULTS,Options!G56,\"\")","v":""}]
[null,{"$f":"IF(VIEW_REZULTS,IF(Options!B57<>Options!B56,Options!B57,\"\"),\"\")","v":""},{"$f":"IF(VIEW_REZULTS,Options!C57,\"\")","v":""},null,null,null,null,null,null,null,null,null,null,null,null,null,null,null,{"$f":"IF(VIEW_REZULTS,Options!G57,\"\")","v":""}]
[null,{"$f":"IF(VIEW_REZULTS,IF(Options!B58<>Options!B57,Options!B58,\"\"),\"\")","v":""},{"$f":"IF(VIEW_REZULTS,Options!C58,\"\")","v":""},null,null,null,null,null,null,null,null,null,null,null,null,null,null,null,{"$f":"IF(VIEW_REZULTS,Options!G58,\"\")","v":""}]
[null,{"$f":"IF(VIEW_REZULTS,IF(Options!B59<>Options!B58,Options!B59,\"\"),\"\")","v":""},{"$f":"IF(VIEW_REZULTS,Options!C59,\"\")","v":""},null,null,null,null,null,null,null,null,null,null,null,null,null,null,null,{"$f":"IF(VIEW_REZULTS,Options!G59,\"\")","v":""}]
[null,{"$f":"IF(VIEW_REZULTS,IF(Options!B60<>Options!B59,Options!B60,\"\"),\"\")","v":""},{"$f":"IF(VIEW_REZULTS,Options!C60,\"\")","v":""},null,null,null,null,null,null,null,null,null,null,null,null,null,null,null,{"$f":"IF(VIEW_REZULTS,Options!G60,\"\")","v":""}]
[null,{"$f":"IF(VIEW_REZULTS,IF(Options!B61<>Options!B60,Options!B61,\"\"),\"\")","v":""},{"$f":"IF(VIEW_REZULTS,Options!C61,\"\")","v":""},null,null,null,null,null,null,null,null,null,null,null,null,null,null,null,{"$f":"IF(VIEW_REZULTS,Options!G61,\"\")","v":""}]
[null,{"$f":"IF(VIEW_REZULTS,IF(Options!B62<>Options!B61,Options!B62,\"\"),\"\")","v":""},{"$f":"IF(VIEW_REZULTS,Options!C62,\"\")","v":""},null,null,null,null,null,null,null,null,null,null,null,null,null,null,null,{"$f":"IF(VIEW_REZULTS,Options!G62,\"\")","v":""}]
[null,{"$f":"IF(VIEW_REZULTS,IF(Options!B63<>Options!B62,Options!B63,\"\"),\"\")","v":""},{"$f":"IF(VIEW_REZULTS,Options!C63,\"\")","v":""},null,null,null,null,null,null,null,null,null,null,null,null,null,null,null,{"$f":"IF(VIEW_REZULTS,Options!G63,\"\")","v":""}]
[null,{"$f":"IF(VIEW_REZULTS,IF(Options!B64<>Options!B63,Options!B64,\"\"),\"\")","v":""},{"$f":"IF(VIEW_REZULTS,Options!C64,\"\")","v":""},null,null,null,null,null,null,null,null,null,null,null,null,null,null,null,{"$f":"IF(VIEW_REZULTS,Options!G64,\"\")","v":""}]
[null,{"$f":"IF(VIEW_REZULTS,IF(Options!B65<>Options!B64,Options!B65,\"\"),\"\")","v":""},{"$f":"IF(VIEW_REZULTS,Options!C65,\"\")","v":""},null,null,null,null,null,null,null,null,null,null,null,null,null,null,null,{"$f":"IF(VIEW_REZULTS,Options!G65,\"\")","v":""}]
[null,{"$f":"IF(VIEW_REZULTS,IF(Options!B66<>Options!B65,Options!B66,\"\"),\"\")","v":""},{"$f":"IF(VIEW_REZULTS,Options!C66,\"\")","v":""},null,null,null,null,null,null,null,null,null,null,null,null,null,null,null,{"$f":"IF(VIEW_REZULTS,Options!G66,\"\")","v":""}]
[null,{"$f":"IF(VIEW_REZULTS,IF(Options!B67<>Options!B66,Options!B67,\"\"),\"\")","v":""},{"$f":"IF(VIEW_REZULTS,Options!C67,\"\")","v":""},null,null,null,null,null,null,null,null,null,null,null,null,null,null,null,{"$f":"IF(VIEW_REZULTS,Options!G67,\"\")","v":""}]
[null,{"$f":"IF(VIEW_REZULTS,IF(Options!B68<>Options!B67,Options!B68,\"\"),\"\")","v":""},{"$f":"IF(VIEW_REZULTS,Options!C68,\"\")","v":""},null,null,null,null,null,null,null,null,null,null,null,null,null,null,null,{"$f":"IF(VIEW_REZULTS,Options!G68,\"\")","v":""}]
[null,{"$f":"IF(VIEW_REZULTS,IF(Options!B69<>Options!B68,Options!B69,\"\"),\"\")","v":""},{"$f":"IF(VIEW_REZULTS,Options!C69,\"\")","v":""},null,null,null,null,null,null,null,null,null,null,null,null,null,null,null,{"$f":"IF(VIEW_REZULTS,Options!G69,\"\")","v":""}]
[null,{"$f":"IF(VIEW_REZULTS,IF(Options!B70<>Options!B69,Options!B70,\"\"),\"\")","v":""},{"$f":"IF(VIEW_REZULTS,Options!C70,\"\")","v":""},null,null,null,null,null,null,null,null,null,null,null,null,null,null,null,{"$f":"IF(VIEW_REZULTS,Options!G70,\"\")","v":""}]
[null,{"$f":"IF(VIEW_REZULTS,IF(Options!B71<>Options!B70,Options!B71,\"\"),\"\")","v":""},{"$f":"IF(VIEW_REZULTS,Options!C71,\"\")","v":""},null,null,null,null,null,null,null,null,null,null,null,null,null,null,null,{"$f":"IF(VIEW_REZULTS,Options!G71,\"\")","v":""}]
[null,{"$f":"IF(VIEW_REZULTS,IF(Options!B72<>Options!B71,Options!B72,\"\"),\"\")","v":""},{"$f":"IF(VIEW_REZULTS,Options!C72,\"\")","v":""},null,null,null,null,null,null,null,null,null,null,null,null,null,null,null,{"$f":"IF(VIEW_REZULTS,Options!G72,\"\")","v":""}]
[null,{"$f":"IF(VIEW_REZULTS,IF(Options!B73<>Options!B72,Options!B73,\"\"),\"\")","v":""},{"$f":"IF(VIEW_REZULTS,Options!C73,\"\")","v":""},null,null,null,null,null,null,null,null,null,null,null,null,null,null,null,{"$f":"IF(VIEW_REZULTS,Options!G73,\"\")","v":""}]
[null,{"$f":"IF(VIEW_REZULTS,IF(Options!B74<>Options!B73,Options!B74,\"\"),\"\")","v":""},{"$f":"IF(VIEW_REZULTS,Options!C74,\"\")","v":""},null,null,null,null,null,null,null,null,null,null,null,null,null,null,null,{"$f":"IF(VIEW_REZULTS,Options!G74,\"\")","v":""}]
[null,{"$f":"IF(VIEW_REZULTS,IF(Options!B75<>Options!B74,Options!B75,\"\"),\"\")","v":""},{"$f":"IF(VIEW_REZULTS,Options!C75,\"\")","v":""},null,null,null,null,null,null,null,null,null,null,null,null,null,null,null,{"$f":"IF(VIEW_REZULTS,Options!G75,\"\")","v":""}]
[null,{"$f":"IF(VIEW_REZULTS,IF(Options!B76<>Options!B75,Options!B76,\"\"),\"\")","v":""},{"$f":"IF(VIEW_REZULTS,Options!C76,\"\")","v":""},null,null,null,null,null,null,null,null,null,null,null,null,null,null,null,{"$f":"IF(VIEW_REZULTS,Options!G76,\"\")","v":""}]
[null,{"$f":"IF(VIEW_REZULTS,IF(Options!B77<>Options!B76,Options!B77,\"\"),\"\")","v":""},{"$f":"IF(VIEW_REZULTS,Options!C77,\"\")","v":""},null,null,null,null,null,null,null,null,null,null,null,null,null,null,null,{"$f":"IF(VIEW_REZULTS,Options!G77,\"\")","v":""}]
[null,{"$f":"IF(VIEW_REZULTS,IF(Options!B78<>Options!B77,Options!B78,\"\"),\"\")","v":""},{"$f":"IF(VIEW_REZULTS,Options!C78,\"\")","v":""},null,null,null,null,null,null,null,null,null,null,null,null,null,null,null,{"$f":"IF(VIEW_REZULTS,Options!G78,\"\")","v":""}]
[null,{"$f":"IF(VIEW_REZULTS,IF(Options!B79<>Options!B78,Options!B79,\"\"),\"\")","v":""},{"$f":"IF(VIEW_REZULTS,Options!C79,\"\")","v":""},null,null,null,null,null,null,null,null,null,null,null,null,null,null,null,{"$f":"IF(VIEW_REZULTS,Options!G79,\"\")","v":""}]
[null,{"$f":"IF(VIEW_REZULTS,IF(Options!B80<>Options!B79,Options!B80,\"\"),\"\")","v":""},{"$f":"IF(VIEW_REZULTS,Options!C80,\"\")","v":""},null,null,null,null,null,null,null,null,null,null,null,null,null,null,null,{"$f":"IF(VIEW_REZULTS,Options!G80,\"\")","v":""}]
[null,{"$f":"IF(VIEW_REZULTS,IF(Options!B81<>Options!B80,Options!B81,\"\"),\"\")","v":""},{"$f":"IF(VIEW_REZULTS,Options!C81,\"\")","v":""},null,null,null,null,null,null,null,null,null,null,null,null,null,null,null,{"$f":"IF(VIEW_REZULTS,Options!G81,\"\")","v":""}]
[null,{"$f":"IF(VIEW_REZULTS,IF(Options!B82<>Options!B81,Options!B82,\"\"),\"\")","v":""},{"$f":"IF(VIEW_REZULTS,Options!C82,\"\")","v":""},null,null,null,null,null,null,null,null,null,null,null,null,null,null,null,{"$f":"IF(VIEW_REZULTS,Options!G82,\"\")","v":""}]
[null,{"$f":"IF(VIEW_REZULTS,IF(Options!B83<>Options!B82,Options!B83,\"\"),\"\")","v":""},{"$f":"IF(VIEW_REZULTS,Options!C83,\"\")","v":""},null,null,null,null,null,null,null,null,null,null,null,null,null,null,null,{"$f":"IF(VIEW_REZULTS,Options!G83,\"\")","v":""}]
[null,{"$f":"IF(VIEW_REZULTS,IF(Options!B84<>Options!B83,Options!B84,\"\"),\"\")","v":""},{"$f":"IF(VIEW_REZULTS,Options!C84,\"\")","v":""},null,null,null,null,null,null,null,null,null,null,null,null,null,null,null,{"$f":"IF(VIEW_REZULTS,Options!G84,\"\")","v":""}]
[null,{"$f":"IF(VIEW_REZULTS,IF(Options!B85<>Options!B84,Options!B85,\"\"),\"\")","v":""},{"$f":"IF(VIEW_REZULTS,Options!C85,\"\")","v":""},null,null,null,null,null,null,null,null,null,null,null,null,null,null,null,{"$f":"IF(VIEW_REZULTS,Options!G85,\"\")","v":""}]
[null,{"$f":"IF(VIEW_REZULTS,IF(Options!B86<>Options!B85,Options!B86,\"\"),\"\")","v":""},{"$f":"IF(VIEW_REZULTS,Options!C86,\"\")","v":""},null,null,null,null,null,null,null,null,null,null,null,null,null,null,null,{"$f":"IF(VIEW_REZULTS,Options!G86,\"\")","v":""}]
[null,{"$f":"IF(VIEW_REZULTS,IF(Options!B87<>Options!B86,Options!B87,\"\"),\"\")","v":""},{"$f":"IF(VIEW_REZULTS,Options!C87,\"\")","v":""},null,null,null,null,null,null,null,null,null,null,null,null,null,null,null,{"$f":"IF(VIEW_REZULTS,Options!G87,\"\")","v":""}]
[null,{"$f":"IF(VIEW_REZULTS,IF(Options!B88<>Options!B87,Options!B88,\"\"),\"\")","v":""},{"$f":"IF(VIEW_REZULTS,Options!C88,\"\")","v":""},null,null,null,null,null,null,null,null,null,null,null,null,null,null,null,{"$f":"IF(VIEW_REZULTS,Options!G88,\"\")","v":""}]
[null,{"$f":"IF(VIEW_REZULTS,IF(Options!B89<>Options!B88,Options!B89,\"\"),\"\")","v":""},{"$f":"IF(VIEW_REZULTS,Options!C89,\"\")","v":""},null,null,null,null,null,null,null,null,null,null,null,null,null,null,null,{"$f":"IF(VIEW_REZULTS,Options!G89,\"\")","v":""}]
[null,{"$f":"IF(VIEW_REZULTS,IF(Options!B90<>Options!B89,Options!B90,\"\"),\"\")","v":""},{"$f":"IF(VIEW_REZULTS,Options!C90,\"\")","v":""},null,null,null,null,null,null,null,null,null,null,null,null,null,null,null,{"$f":"IF(VIEW_REZULTS,Options!G90,\"\")","v":""}]
[null,{"$f":"IF(VIEW_REZULTS,IF(Options!B91<>Options!B90,Options!B91,\"\"),\"\")","v":""},{"$f":"IF(VIEW_REZULTS,Options!C91,\"\")","v":""},null,null,null,null,null,null,null,null,null,null,null,null,null,null,null,{"$f":"IF(VIEW_REZULTS,Options!G91,\"\")","v":""}]
[null,{"$f":"IF(VIEW_REZULTS,IF(Options!B92<>Options!B91,Options!B92,\"\"),\"\")","v":""},{"$f":"IF(VIEW_REZULTS,Options!C92,\"\")","v":""},null,null,null,null,null,null,null,null,null,null,null,null,null,null,null,{"$f":"IF(VIEW_REZULTS,Options!G92,\"\")","v":""}]
[null,{"$f":"IF(VIEW_REZULTS,IF(Options!B93<>Options!B92,Options!B93,\"\"),\"\")","v":""},{"$f":"IF(VIEW_REZULTS,Options!C93,\"\")","v":""},{"$f":"IF(VIEW_REZULTS,Options!D93,\"\")","v":""},{"$f":"IF(VIEW_REZULTS,Options!E93,\"\")","v":""},{"$f":"IF(VIEW_REZULTS,Options!F93,\"\")","v":""},{"$f":"IF(VIEW_REZULTS,Options!G93,\"\")","v":""},{"$f":"IF(VIEW_REZULTS,Options!H93,\"\")","v":""},{"$f":"IF(VIEW_REZULTS,Options!I93,\"\")","v":""},{"$f":"IF(VIEW_REZULTS,Options!J93,\"\")","v":""},{"$f":"IF(VIEW_REZULTS,Options!K93,\"\")","v":""},{"$f":"IF(VIEW_REZULTS,Options!L93,\"\")","v":""},{"$f":"IF(VIEW_REZULTS,Options!M93,\"\")","v":""},{"$f":"IF(VIEW_REZULTS,Options!N93,\"\")","v":""},{"$f":"IF(VIEW_REZULTS,Options!O93,\"\")","v":""},{"$f":"IF(VIEW_REZULTS,Options!P93,\"\")","v":""},{"$f":"IF(VIEW_REZULTS,Options!Q93,\"\")","v":""},{"$f":"IF(VIEW_REZULTS,Options!R93,\"\")","v":""},{"$f":"IF(VIEW_REZULTS,Options!G93,\"\")","v":""}]
[null,{"$f":"IF(VIEW_REZULTS,IF(Options!B94<>Options!B93,Options!B94,\"\"),\"\")","v":""},{"$f":"IF(VIEW_REZULTS,Options!C94,\"\")","v":""},null,null,null,null,null,null,null,null,null,null,null,null,null,null,null,{"$f":"IF(VIEW_REZULTS,Options!G94,\"\")","v":""}]
[null,{"$f":"IF(VIEW_REZULTS,IF(Options!B95<>Options!B94,Options!B95,\"\"),\"\")","v":""},{"$f":"IF(VIEW_REZULTS,Options!C95,\"\")","v":""},null,null,null,null,null,null,null,null,null,null,null,null,null,null,null,{"$f":"IF(VIEW_REZULTS,Options!G95,\"\")","v":""}]
[null,{"$f":"IF(VIEW_REZULTS,IF(Options!B96<>Options!B95,Options!B96,\"\"),\"\")","v":""},{"$f":"IF(VIEW_REZULTS,Options!C96,\"\")","v":""},null,null,null,null,null,null,null,null,null,null,null,null,null,null,null,{"$f":"IF(VIEW_REZULTS,Options!G96,\"\")","v":""}]
[null,{"$f":"IF(VIEW_REZULTS,IF(Options!B97<>Options!B96,Options!B97,\"\"),\"\")","v":""},{"$f":"IF(VIEW_REZULTS,Options!C97,\"\")","v":""},null,null,null,null,null,null,null,null,null,null,null,null,null,null,null,{"$f":"IF(VIEW_REZULTS,Options!G97,\"\")","v":""}]
[null,{"$f":"IF(VIEW_REZULTS,IF(Options!B98<>Options!B97,Options!B98,\"\"),\"\")","v":""},{"$f":"IF(VIEW_REZULTS,Options!C98,\"\")","v":""},null,null,null,null,null,null,null,null,null,null,null,null,null,null,null,{"$f":"IF(VIEW_REZULTS,Options!G98,\"\")","v":""}]
[null,{"$f":"IF(VIEW_REZULTS,IF(Options!B99<>Options!B98,Options!B99,\"\"),\"\")","v":""},{"$f":"IF(VIEW_REZULTS,Options!C99,\"\")","v":""},null,null,null,null,null,null,null,null,null,null,null,null,null,null,null,{"$f":"IF(VIEW_REZULTS,Options!G99,\"\")","v":""}]
[null,{"$f":"IF(VIEW_REZULTS,IF(Options!B100<>Options!B99,Options!B100,\"\"),\"\")","v":""},{"$f":"IF(VIEW_REZULTS,Options!C100,\"\")","v":""},null,null,null,null,null,null,null,null,null,null,null,null,null,null,null,{"$f":"IF(VIEW_REZULTS,Options!G100,\"\")","v":""}]
[null,{"$f":"IF(VIEW_REZULTS,IF(Options!B101<>Options!B100,Options!B101,\"\"),\"\")","v":""},{"$f":"IF(VIEW_REZULTS,Options!C101,\"\")","v":""},null,null,null,null,null,null,null,null,null,null,null,null,null,null,null,{"$f":"IF(VIEW_REZULTS,Options!G101,\"\")","v":""}]
[null,{"$f":"IF(VIEW_REZULTS,IF(Options!B102<>Options!B101,Options!B102,\"\"),\"\")","v":""},{"$f":"IF(VIEW_REZULTS,Options!C102,\"\")","v":""},null,null,null,null,null,null,null,null,null,null,null,null,null,null,null,{"$f":"IF(VIEW_REZULTS,Options!G102,\"\")","v":""}]
[null,{"$f":"IF(VIEW_REZULTS,IF(Options!B103<>Options!B102,Options!B103,\"\"),\"\")","v":""},{"$f":"IF(VIEW_REZULTS,Options!C103,\"\")","v":""},{"$f":"IF(VIEW_REZULTS,Options!D103,\"\")","v":""},{"$f":"IF(VIEW_REZULTS,Options!E103,\"\")","v":""},{"$f":"IF(VIEW_REZULTS,Options!F103,\"\")","v":""},{"$f":"IF(VIEW_REZULTS,Options!G103,\"\")","v":""},{"$f":"IF(VIEW_REZULTS,Options!H103,\"\")","v":""},{"$f":"IF(VIEW_REZULTS,Options!I103,\"\")","v":""},{"$f":"IF(VIEW_REZULTS,Options!J103,\"\")","v":""},{"$f":"IF(VIEW_REZULTS,Options!K103,\"\")","v":""},{"$f":"IF(VIEW_REZULTS,Options!L103,\"\")","v":""},{"$f":"IF(VIEW_REZULTS,Options!M103,\"\")","v":""},{"$f":"IF(VIEW_REZULTS,Options!N103,\"\")","v":""},{"$f":"IF(VIEW_REZULTS,Options!O103,\"\")","v":""},{"$f":"IF(VIEW_REZULTS,Options!P103,\"\")","v":""},{"$f":"IF(VIEW_REZULTS,Options!Q103,\"\")","v":""},{"$f":"IF(VIEW_REZULTS,Options!R103,\"\")","v":""},{"$f":"IF(VIEW_REZULTS,Options!G103,\"\")","v":""}]
[null,{"$f":"IF(VIEW_REZULTS,IF(Options!B104<>Options!B103,Options!B104,\"\"),\"\")","v":""},{"$f":"IF(VIEW_REZULTS,Options!C104,\"\")","v":""},null,null,null,null,null,null,null,null,null,null,null,null,null,null,null,{"$f":"IF(VIEW_REZULTS,Options!G104,\"\")","v":""}]
[null,{"$f":"IF(VIEW_REZULTS,IF(Options!B105<>Options!B104,Options!B105,\"\"),\"\")","v":""},{"$f":"IF(VIEW_REZULTS,Options!C105,\"\")","v":""},null,null,null,null,null,null,null,null,null,null,null,null,null,null,null,{"$f":"IF(VIEW_REZULTS,Options!G105,\"\")","v":""}]
[null,{"$f":"IF(VIEW_REZULTS,IF(Options!B106<>Options!B105,Options!B106,\"\"),\"\")","v":""},{"$f":"IF(VIEW_REZULTS,Options!C106,\"\")","v":""},null,null,null,null,null,null,null,null,null,null,null,null,null,null,null,{"$f":"IF(VIEW_REZULTS,Options!G106,\"\")","v":""}]
[null,{"$f":"IF(VIEW_REZULTS,IF(Options!B107<>Options!B106,Options!B107,\"\"),\"\")","v":""},{"$f":"IF(VIEW_REZULTS,Options!C107,\"\")","v":""},null,null,null,null,null,null,null,null,null,null,null,null,null,null,null,{"$f":"IF(VIEW_REZULTS,Options!G107,\"\")","v":""}]
[null,{"$f":"IF(VIEW_REZULTS,IF(Options!B108<>Options!B107,Options!B108,\"\"),\"\")","v":""},{"$f":"IF(VIEW_REZULTS,Options!C108,\"\")","v":""},null,null,null,null,null,null,null,null,null,null,null,null,null,null,null,{"$f":"IF(VIEW_REZULTS,Options!G108,\"\")","v":""}]
[null,{"$f":"IF(VIEW_REZULTS,IF(Options!B109<>Options!B108,Options!B109,\"\"),\"\")","v":""},{"$f":"IF(VIEW_REZULTS,Options!C109,\"\")","v":""},null,null,null,null,null,null,null,null,null,null,null,null,null,null,null,{"$f":"IF(VIEW_REZULTS,Options!G109,\"\")","v":""}]
[null,{"$f":"IF(VIEW_REZULTS,IF(Options!B110<>Options!B109,Options!B110,\"\"),\"\")","v":""},{"$f":"IF(VIEW_REZULTS,Options!C110,\"\")","v":""},null,null,null,null,null,null,null,null,null,null,null,null,null,null,null,{"$f":"IF(VIEW_REZULTS,Options!G110,\"\")","v":""}]
[null,{"$f":"IF(VIEW_REZULTS,IF(Options!B111<>Options!B110,Options!B111,\"\"),\"\")","v":""},{"$f":"IF(VIEW_REZULTS,Options!C111,\"\")","v":""},null,null,null,null,null,null,null,null,null,null,null,null,null,null,null,{"$f":"IF(VIEW_REZULTS,Options!G111,\"\")","v":""}]
[null,{"$f":"IF(VIEW_REZULTS,IF(Options!B112<>Options!B111,Options!B112,\"\"),\"\")","v":""},{"$f":"IF(VIEW_REZULTS,Options!C112,\"\")","v":""},null,null,null,null,null,null,null,null,null,null,null,null,null,null,null,{"$f":"IF(VIEW_REZULTS,Options!G112,\"\")","v":""}]
[null,{"$f":"IF(VIEW_REZULTS,IF(Options!B113<>Options!B112,Options!B113,\"\"),\"\")","v":""},{"$f":"IF(VIEW_REZULTS,Options!C113,\"\")","v":""},{"$f":"IF(VIEW_REZULTS,Options!D113,\"\")","v":""},{"$f":"IF(VIEW_REZULTS,Options!E113,\"\")","v":""},{"$f":"IF(VIEW_REZULTS,Options!F113,\"\")","v":""},{"$f":"IF(VIEW_REZULTS,Options!G113,\"\")","v":""},{"$f":"IF(VIEW_REZULTS,Options!H113,\"\")","v":""},{"$f":"IF(VIEW_REZULTS,Options!I113,\"\")","v":""},{"$f":"IF(VIEW_REZULTS,Options!J113,\"\")","v":""},{"$f":"IF(VIEW_REZULTS,Options!K113,\"\")","v":""},{"$f":"IF(VIEW_REZULTS,Options!L113,\"\")","v":""},{"$f":"IF(VIEW_REZULTS,Options!M113,\"\")","v":""},{"$f":"IF(VIEW_REZULTS,Options!N113,\"\")","v":""},{"$f":"IF(VIEW_REZULTS,Options!O113,\"\")","v":""},{"$f":"IF(VIEW_REZULTS,Options!P113,\"\")","v":""},{"$f":"IF(VIEW_REZULTS,Options!Q113,\"\")","v":""},{"$f":"IF(VIEW_REZULTS,Options!R113,\"\")","v":""},{"$f":"IF(VIEW_REZULTS,Options!G113,\"\")","v":""}]
[null,{"$f":"IF(VIEW_REZULTS,IF(Options!B114<>Options!B113,Options!B114,\"\"),\"\")","v":""},{"$f":"IF(VIEW_REZULTS,Options!C114,\"\")","v":""},null,null,null,null,null,null,null,null,null,null,null,null,null,null,null,{"$f":"IF(VIEW_REZULTS,Options!G114,\"\")","v":""}]
[null,{"$f":"IF(VIEW_REZULTS,IF(Options!B115<>Options!B114,Options!B115,\"\"),\"\")","v":""},{"$f":"IF(VIEW_REZULTS,Options!C115,\"\")","v":""},null,null,null,null,null,null,null,null,null,null,null,null,null,null,null,{"$f":"IF(VIEW_REZULTS,Options!G115,\"\")","v":""}]
[null,{"$f":"IF(VIEW_REZULTS,IF(Options!B116<>Options!B115,Options!B116,\"\"),\"\")","v":""},{"$f":"IF(VIEW_REZULTS,Options!C116,\"\")","v":""},null,null,null,null,null,null,null,null,null,null,null,null,null,null,null,{"$f":"IF(VIEW_REZULTS,Options!G116,\"\")","v":""}]
[null,{"$f":"IF(VIEW_REZULTS,IF(Options!B117<>Options!B116,Options!B117,\"\"),\"\")","v":""},{"$f":"IF(VIEW_REZULTS,Options!C117,\"\")","v":""},null,null,null,null,null,null,null,null,null,null,null,null,null,null,null,{"$f":"IF(VIEW_REZULTS,Options!G117,\"\")","v":""}]
[null,{"$f":"IF(VIEW_REZULTS,IF(Options!B118<>Options!B117,Options!B118,\"\"),\"\")","v":""},{"$f":"IF(VIEW_REZULTS,Options!C118,\"\")","v":""},null,null,null,null,null,null,null,null,null,null,null,null,null,null,null,{"$f":"IF(VIEW_REZULTS,Options!G118,\"\")","v":""}]
[null,{"$f":"IF(VIEW_REZULTS,IF(Options!B119<>Options!B118,Options!B119,\"\"),\"\")","v":""},{"$f":"IF(VIEW_REZULTS,Options!C119,\"\")","v":""},null,null,null,null,null,null,null,null,null,null,null,null,null,null,null,{"$f":"IF(VIEW_REZULTS,Options!G119,\"\")","v":""}]
[null,{"$f":"IF(VIEW_REZULTS,IF(Options!B120<>Options!B119,Options!B120,\"\"),\"\")","v":""},{"$f":"IF(VIEW_REZULTS,Options!C120,\"\")","v":""},null,null,null,null,null,null,null,null,null,null,null,null,null,null,null,{"$f":"IF(VIEW_REZULTS,Options!G120,\"\")","v":""}]
[null,{"$f":"IF(VIEW_REZULTS,IF(Options!B121<>Options!B120,Options!B121,\"\"),\"\")","v":""},{"$f":"IF(VIEW_REZULTS,Options!C121,\"\")","v":""},null,null,null,null,null,null,null,null,null,null,null,null,null,null,null,{"$f":"IF(VIEW_REZULTS,Options!G121,\"\")","v":""}]
[null,{"$f":"IF(VIEW_REZULTS,IF(Options!B122<>Options!B121,Options!B122,\"\"),\"\")","v":""},{"$f":"IF(VIEW_REZULTS,Options!C122,\"\")","v":""},null,null,null,null,null,null,null,null,null,null,null,null,null,null,null,{"$f":"IF(VIEW_REZULTS,Options!G122,\"\")","v":""}]
[null,{"$f":"IF(VIEW_REZULTS,IF(Options!B123<>Options!B122,Options!B123,\"\"),\"\")","v":""},{"$f":"IF(VIEW_REZULTS,Options!C123,\"\")","v":""},null,null,null,null,null,null,null,null,null,null,null,null,null,null,null,{"$f":"IF(VIEW_REZULTS,Options!G123,\"\")","v":""}]
[null,{"$f":"IF(VIEW_REZULTS,IF(Options!B124<>Options!B123,Options!B124,\"\"),\"\")","v":""},{"$f":"IF(VIEW_REZULTS,Options!C124,\"\")","v":""},null,null,null,null,null,null,null,null,null,null,null,null,null,null,null,{"$f":"IF(VIEW_REZULTS,Options!G124,\"\")","v":""}]
[null,{"$f":"IF(VIEW_REZULTS,IF(Options!B125<>Options!B124,Options!B125,\"\"),\"\")","v":""},{"$f":"IF(VIEW_REZULTS,Options!C125,\"\")","v":""},null,null,null,null,null,null,null,null,null,null,null,null,null,null,null,{"$f":"IF(VIEW_REZULTS,Options!G125,\"\")","v":""}]
[null,{"$f":"IF(VIEW_REZULTS,IF(Options!B126<>Options!B125,Options!B126,\"\"),\"\")","v":""},{"$f":"IF(VIEW_REZULTS,Options!C126,\"\")","v":""},null,null,null,null,null,null,null,null,null,null,null,null,null,null,null,{"$f":"IF(VIEW_REZULTS,Options!G126,\"\")","v":""}]
[null,{"$f":"IF(VIEW_REZULTS,IF(Options!B127<>Options!B126,Options!B127,\"\"),\"\")","v":""},{"$f":"IF(VIEW_REZULTS,Options!C127,\"\")","v":""},null,null,null,null,null,null,null,null,null,null,null,null,null,null,null,{"$f":"IF(VIEW_REZULTS,Options!G127,\"\")","v":""}]
[null,{"$f":"IF(VIEW_REZULTS,IF(Options!B128<>Options!B127,Options!B128,\"\"),\"\")","v":""},{"$f":"IF(VIEW_REZULTS,Options!C128,\"\")","v":""},null,null,null,null,null,null,null,null,null,null,null,null,null,null,null,{"$f":"IF(VIEW_REZULTS,Options!G128,\"\")","v":""}]
[null,{"$f":"IF(VIEW_REZULTS,IF(Options!B129<>Options!B128,Options!B129,\"\"),\"\")","v":""},{"$f":"IF(VIEW_REZULTS,Options!C129,\"\")","v":""},null,null,null,null,null,null,null,null,null,null,null,null,null,null,null,{"$f":"IF(VIEW_REZULTS,Options!G129,\"\")","v":""}]
[null,{"$f":"IF(VIEW_REZULTS,IF(Options!B130<>Options!B129,Options!B130,\"\"),\"\")","v":""},{"$f":"IF(VIEW_REZULTS,Options!C130,\"\")","v":""},null,null,null,null,null,null,null,null,null,null,null,null,null,null,null,{"$f":"IF(VIEW_REZULTS,Options!G130,\"\")","v":""}]
[null,{"$f":"IF(VIEW_REZULTS,IF(Options!B131<>Options!B130,Options!B131,\"\"),\"\")","v":""},{"$f":"IF(VIEW_REZULTS,Options!C131,\"\")","v":""},null,null,null,null,null,null,null,null,null,null,null,null,null,null,null,{"$f":"IF(VIEW_REZULTS,Options!G131,\"\")","v":""}]
[null,{"$f":"IF(VIEW_REZULTS,IF(Options!B132<>Options!B131,Options!B132,\"\"),\"\")","v":""},{"$f":"IF(VIEW_REZULTS,Options!C132,\"\")","v":""},null,null,null,null,null,null,null,null,null,null,null,null,null,null,null,{"$f":"IF(VIEW_REZULTS,Options!G132,\"\")","v":""}]
[null,{"$f":"IF(VIEW_REZULTS,IF(Options!B133<>Options!B132,Options!B133,\"\"),\"\")","v":""},{"$f":"IF(VIEW_REZULTS,Options!C133,\"\")","v":""},null,null,null,null,null,null,null,null,null,null,null,null,null,null,null,{"$f":"IF(VIEW_REZULTS,Options!G133,\"\")","v":""}]
[null,{"$f":"IF(VIEW_REZULTS,IF(Options!B134<>Options!B133,Options!B134,\"\"),\"\")","v":""},{"$f":"IF(VIEW_REZULTS,Options!C134,\"\")","v":""},null,null,null,null,null,null,null,null,null,null,null,null,null,null,null,{"$f":"IF(VIEW_REZULTS,Options!G134,\"\")","v":""}]
[null,{"$f":"IF(VIEW_REZULTS,IF(Options!B135<>Options!B134,Options!B135,\"\"),\"\")","v":""},{"$f":"IF(VIEW_REZULTS,Options!C135,\"\")","v":""},null,null,null,null,null,null,null,null,null,null,null,null,null,null,null,{"$f":"IF(VIEW_REZULTS,Options!G135,\"\")","v":""}]
[null,{"$f":"IF(VIEW_REZULTS,IF(Options!B136<>Options!B135,Options!B136,\"\"),\"\")","v":""},{"$f":"IF(VIEW_REZULTS,Options!C136,\"\")","v":""},null,null,null,null,null,null,null,null,null,null,null,null,null,null,null,{"$f":"IF(VIEW_REZULTS,Options!G136,\"\")","v":""}]
[null,{"$f":"IF(VIEW_REZULTS,IF(Options!B137<>Options!B136,Options!B137,\"\"),\"\")","v":""},{"$f":"IF(VIEW_REZULTS,Options!C137,\"\")","v":""},null,null,null,null,null,null,null,null,null,null,null,null,null,null,null,{"$f":"IF(VIEW_REZULTS,Options!G137,\"\")","v":""}]
[null,{"$f":"IF(VIEW_REZULTS,IF(Options!B138<>Options!B137,Options!B138,\"\"),\"\")","v":""},{"$f":"IF(VIEW_REZULTS,Options!C138,\"\")","v":""},null,null,null,null,null,null,null,null,null,null,null,null,null,null,null,{"$f":"IF(VIEW_REZULTS,Options!G138,\"\")","v":""}]
[null,{"$f":"IF(VIEW_REZULTS,IF(Options!B139<>Options!B138,Options!B139,\"\"),\"\")","v":""},{"$f":"IF(VIEW_REZULTS,Options!C139,\"\")","v":""},null,null,null,null,null,null,null,null,null,null,null,null,null,null,null,{"$f":"IF(VIEW_REZULTS,Options!G139,\"\")","v":""}]
[null,{"$f":"IF(VIEW_REZULTS,IF(Options!B140<>Options!B139,Options!B140,\"\"),\"\")","v":""},{"$f":"IF(VIEW_REZULTS,Options!C140,\"\")","v":""},null,null,null,null,null,null,null,null,null,null,null,null,null,null,null,{"$f":"IF(VIEW_REZULTS,Options!G140,\"\")","v":""}]
[null,{"$f":"IF(VIEW_REZULTS,IF(Options!B141<>Options!B140,Options!B141,\"\"),\"\")","v":""},{"$f":"IF(VIEW_REZULTS,Options!C141,\"\")","v":""},null,null,null,null,null,null,null,null,null,null,null,null,null,null,null,{"$f":"IF(VIEW_REZULTS,Options!G141,\"\")","v":""}]
[null,{"$f":"IF(VIEW_REZULTS,IF(Options!B142<>Options!B141,Options!B142,\"\"),\"\")","v":""},{"$f":"IF(VIEW_REZULTS,Options!C142,\"\")","v":""},null,null,null,null,null,null,null,null,null,null,null,null,null,null,null,{"$f":"IF(VIEW_REZULTS,Options!G142,\"\")","v":""}]
[null,{"$f":"IF(VIEW_REZULTS,IF(Options!B143<>Options!B142,Options!B143,\"\"),\"\")","v":""},{"$f":"IF(VIEW_REZULTS,Options!C143,\"\")","v":""},null,null,null,null,null,null,null,null,null,null,null,null,null,null,null,{"$f":"IF(VIEW_REZULTS,Options!G143,\"\")","v":""}]
[null,{"$f":"IF(VIEW_REZULTS,IF(Options!B144<>Options!B143,Options!B144,\"\"),\"\")","v":""},{"$f":"IF(VIEW_REZULTS,Options!C144,\"\")","v":""},null,null,null,null,null,null,null,null,null,null,null,null,null,null,null,{"$f":"IF(VIEW_REZULTS,Options!G144,\"\")","v":""}]
[null,{"$f":"IF(VIEW_REZULTS,IF(Options!B145<>Options!B144,Options!B145,\"\"),\"\")","v":""},{"$f":"IF(VIEW_REZULTS,Options!C145,\"\")","v":""},null,null,null,null,null,null,null,null,null,null,null,null,null,null,null,{"$f":"IF(VIEW_REZULTS,Options!G145,\"\")","v":""}]
[null,{"$f":"IF(VIEW_REZULTS,IF(Options!B146<>Options!B145,Options!B146,\"\"),\"\")","v":""},{"$f":"IF(VIEW_REZULTS,Options!C146,\"\")","v":""},null,null,null,null,null,null,null,null,null,null,null,null,null,null,null,{"$f":"IF(VIEW_REZULTS,Options!G146,\"\")","v":""}]
[null,{"$f":"IF(VIEW_REZULTS,IF(Options!B147<>Options!B146,Options!B147,\"\"),\"\")","v":""},{"$f":"IF(VIEW_REZULTS,Options!C147,\"\")","v":""},null,null,null,null,null,null,null,null,null,null,null,null,null,null,null,{"$f":"IF(VIEW_REZULTS,Options!G147,\"\")","v":""}]
[null,{"$f":"IF(VIEW_REZULTS,IF(Options!B148<>Options!B147,Options!B148,\"\"),\"\")","v":""},{"$f":"IF(VIEW_REZULTS,Options!C148,\"\")","v":""},null,null,null,null,null,null,null,null,null,null,null,null,null,null,null,{"$f":"IF(VIEW_REZULTS,Options!G148,\"\")","v":""}]
[null,{"$f":"IF(VIEW_REZULTS,IF(Options!B149<>Options!B148,Options!B149,\"\"),\"\")","v":""},{"$f":"IF(VIEW_REZULTS,Options!C149,\"\")","v":""},null,null,null,null,null,null,null,null,null,null,null,null,null,null,null,{"$f":"IF(VIEW_REZULTS,Options!G149,\"\")","v":""}]
[null,{"$f":"IF(VIEW_REZULTS,IF(Options!B150<>Options!B149,Options!B150,\"\"),\"\")","v":""},{"$f":"IF(VIEW_REZULTS,Options!C150,\"\")","v":""},null,null,null,null,null,null,null,null,null,null,null,null,null,null,null,{"$f":"IF(VIEW_REZULTS,Options!G150,\"\")","v":""}]
[null,{"$f":"IF(VIEW_REZULTS,IF(Options!B151<>Options!B150,Options!B151,\"\"),\"\")","v":""},{"$f":"IF(VIEW_REZULTS,Options!C151,\"\")","v":""},null,null,null,null,null,null,null,null,null,null,null,null,null,null,null,{"$f":"IF(VIEW_REZULTS,Options!G151,\"\")","v":""}]
[null,{"$f":"IF(VIEW_REZULTS,IF(Options!B152<>Options!B151,Options!B152,\"\"),\"\")","v":""},{"$f":"IF(VIEW_REZULTS,Options!C152,\"\")","v":""},null,null,null,null,null,null,null,null,null,null,null,null,null,null,null,{"$f":"IF(VIEW_REZULTS,Options!G152,\"\")","v":""}]
[null,{"$f":"IF(VIEW_REZULTS,IF(Options!B153<>Options!B152,Options!B153,\"\"),\"\")","v":""},{"$f":"IF(VIEW_REZULTS,Options!C153,\"\")","v":""},null,null,null,null,null,null,null,null,null,null,null,null,null,null,null,{"$f":"IF(VIEW_REZULTS,Options!G153,\"\")","v":""}]
[null,{"$f":"IF(VIEW_REZULTS,IF(Options!B154<>Options!B153,Options!B154,\"\"),\"\")","v":""},{"$f":"IF(VIEW_REZULTS,Options!C154,\"\")","v":""},null,null,null,null,null,null,null,null,null,null,null,null,null,null,null,{"$f":"IF(VIEW_REZULTS,Options!G154,\"\")","v":""}]
[null,{"$f":"IF(VIEW_REZULTS,IF(Options!B155<>Options!B154,Options!B155,\"\"),\"\")","v":""},{"$f":"IF(VIEW_REZULTS,Options!C155,\"\")","v":""},null,null,null,null,null,null,null,null,null,null,null,null,null,null,null,{"$f":"IF(VIEW_REZULTS,Options!G155,\"\")","v":""}]
[null,{"$f":"IF(VIEW_REZULTS,IF(Options!B156<>Options!B155,Options!B156,\"\"),\"\")","v":""},{"$f":"IF(VIEW_REZULTS,Options!C156,\"\")","v":""},null,null,null,null,null,null,null,null,null,null,null,null,null,null,null,{"$f":"IF(VIEW_REZULTS,Options!G156,\"\")","v":""}]
[null,{"$f":"IF(VIEW_REZULTS,IF(Options!B157<>Options!B156,Options!B157,\"\"),\"\")","v":""},{"$f":"IF(VIEW_REZULTS,Options!C157,\"\")","v":""},null,null,null,null,null,null,null,null,null,null,null,null,null,null,null,{"$f":"IF(VIEW_REZULTS,Options!G157,\"\")","v":""}]
[null,{"$f":"IF(VIEW_REZULTS,IF(Options!B158<>Options!B157,Options!B158,\"\"),\"\")","v":""},{"$f":"IF(VIEW_REZULTS,Options!C158,\"\")","v":""},null,null,null,null,null,null,null,null,null,null,null,null,null,null,null,{"$f":"IF(VIEW_REZULTS,Options!G158,\"\")","v":""}]
[null,{"$f":"IF(VIEW_REZULTS,IF(Options!B159<>Options!B158,Options!B159,\"\"),\"\")","v":""},{"$f":"IF(VIEW_REZULTS,Options!C159,\"\")","v":""},null,null,null,null,null,null,null,null,null,null,null,null,null,null,null,{"$f":"IF(VIEW_REZULTS,Options!G159,\"\")","v":""}]

{"sheet":"Options","index":2,"n_rows":159,"n_cols":28,"rows_kept":159,"cut":false,"hidden":true,"merged":[[1,2,1,3]]}
[]
[null,null,"Параметры"]
[null,null,"Всего вопросов",27]
[null,null,"Номер вопроса",0]
[null,null,"Вопрос-ответ 1",{"$f":"IF(QUESTION_NUM>0,INDEX(dbTest[Вопрос],(QUESTION_NUM-1)*5+1,1),\"\")","v":""}]
[null,null,"Вопрос-ответ 2",{"$f":"IF(QUESTION_NUM>0,INDEX(dbTest[Вопрос],(QUESTION_NUM-1)*5+2,1),\"\")","v":""}]
[null,null,"Вопрос-ответ 3",{"$f":"IF(QUESTION_NUM>0,INDEX(dbTest[Вопрос],(QUESTION_NUM-1)*5+3,1),\"\")","v":""}]
[null,null,"Вопрос-ответ 4",{"$f":"IF(QUESTION_NUM>0,INDEX(dbTest[Вопрос],(QUESTION_NUM-1)*5+4,1),\"\")","v":""}]
[null,null,"Вопрос-ответ 5",{"$f":"IF(QUESTION_NUM>0,INDEX(dbTest[Вопрос],(QUESTION_NUM-1)*5+5,1),\"\")","v":""}]
[null,null,"Количество вариантов вопросов",{"$f":"COUNTA(dbTest[№])","v":135}]
[null,null,"Макс. количество тестирований",{"$f":"COUNT(TESTED)","v":20}]
[null,null,"Количество протестированных",{"$f":"SUM(TESTED)","v":0}]
[null,null,"Тестируемый №",{"$f":"IFERROR(MATCH(0,TESTED,0),0)","v":1}]
[null,null,"Удаление теста",0,{"$f":"IF(DELETE_NUM>0,IF(DELETE_NUM=21,\"Все\",DELETE_NUM),\"-\")","v":"-"}]
[null,null,"Просмотр теста",{"$f":"TESTED_COUNT>1","v":false}]
[]
[null,null,"Стили","Баллы","Оценка"]
[null,null,"«Внимание к производительности труда»",{"$f":"IF(VIEW_REZULTS,SUMPRODUCT(dbTest[E],dbTest[Итог]),\"\")","v":""},{"$f":"IF($D$21>0,INT(D18/$D$21*100+0.5),0)","v":0}]
[null,null,"«Внимание к работе»",{"$f":"IF(VIEW_REZULTS,SUMPRODUCT(dbTest[W],dbTest[Итог]),\"\")","v":""},{"$f":"IF($D$21>0,INT(D19/$D$21*100+0.5),0)","v":0}]
[null,null,"«Внимание к человеку»",{"$f":"IF(VIEW_REZULTS,SUMPRODUCT(dbTest[H],dbTest[Итог]),\"\")","v":""},{"$f":"IF($D$21>0,100-E18-E19,0)","v":0}]
[null,null,"Итог",{"$f":"SUM(D18:D20)","v":0}]
[]
[null,null,null,null,null,null,null,null,{"$f":"IF(COUNT(dbTest[1])=QUESTIONS_MAX,1,0)","v":0},{"$f":"IF(COUNT(dbTest[2])=QUESTIONS_MAX,1,0)","v":0},{"$f":"IF(COUNT(dbTest[3])=QUESTIONS_MAX,1,0)","v":0},{"$f":"IF(COUNT(dbTest[4])=QUESTIONS_MAX,1,0)","v":0},{"$f":"IF(COUNT(dbTest[5])=QUESTIONS_MAX,1,0)","v":0},{"$f":"IF(COUNT(dbTest[6])=QUESTIONS_MAX,1,0)","v":0},{"$f":"IF(COUNT(dbTest[7])=QUESTIONS_MAX,1,0)","v":0},{"$f":"IF(COUNT(dbTest[8])=QUESTIONS_MAX,1,0)","v":0},{"$f":"IF(COUNT(dbTest[9])=QUESTIONS_MAX,1,0)","v":0},{"$f":"IF(COUNT(dbTest[10])=QUESTIONS_MAX,1,0)","v":0},{"$f":"IF(COUNT(dbTest[11])=QUESTIONS_MAX,1,0)","v":0},{"$f":"IF(COUNT(dbTest[12])=QUESTIONS_MAX,1,0)","v":0},{"$f":"IF(COUNT(dbTest[13])=QUESTIONS_MAX,1,0)","v":0},{"$f":"IF(COUNT(dbTest[14])=QUESTIONS_MAX,1,0)","v":0},{"$f":"IF(COUNT(dbTest[15])=QUESTIONS_MAX,1,0)","v":0},{"$f":"IF(COUNT(dbTest[16])=QUESTIONS_MAX,1,0)","v":0},{"$f":"IF(COUNT(dbTest[17])=QUESTIONS_MAX,1,0)","v":0},{"$f":"IF(COUNT(dbTest[18])=QUESTIONS_MAX,1,0)","v":0},{"$f":"IF(COUNT(dbTest[19])=QUESTIONS_MAX,1,0)","v":0},{"$f":"IF(COUNT(dbTest[20])=QUESTIONS_MAX,1,0)","v":0}]
[null,"№","Вопрос","W","H","E","Итог%","Итог","1","2","3","4","5","6","7","8","9","10","11","12","13","14","15","16","17","18","19","20"]
[null,1,"Руководитель централизует управление группой, замыкая на себе решение всех задач.",3,0,0,{"$f":"IF(TESTED_COUNT>0,INT(dbTest[[#This Row],[Итог]]/TESTED_COUNT*100+0.5),0)","v":0},{"$f":"SUM(dbTest[[#This Row],[1]:[20]])","v":0}]
[null,1,"Руководитель пассивен в выполнении управленческих функций.",0,3,0,{"$f":"IF(TESTED_COUNT>0,INT(dbTest[[#This Row],[Итог]]/TESTED_COUNT*100+0.5),0)","v":0},{"$f":"SUM(dbTest[[#This Row],[1]:[20]])","v":0}]
[null,1,"Руководитель чётко распределяет функции между собой и своими подчиненными.",1,0,3,{"$f":"IF(TESTED_COUNT>0,INT(dbTest[[#This Row],[Итог]]/TESTED_COUNT*100+0.5),0)","v":0},{"$f":"SUM(dbTest[[#This Row],[1]:[20]])","v":0}]
[null,1,"Руководитель ожидает указаний сверху или даже требует их.",1,3,0,{"$f":"IF(TESTED_COUNT>0,INT(dbTest[[#This Row],[Итог]]/TESTED_COUNT*100+0.5),0)","v":0},{"$f":"SUM(dbTest[[#This Row],[1]:[20]])","v":0}]
[null,1,"Руководитель централизует руководство только в трудных ситуациях.",0,0,3,{"$f":"IF(TESTED_COUNT>0,INT(dbTest[[#This Row],[Итог]]/TESTED_COUNT*100+0.5),0)","v":0},{"$f":"SUM(dbTest[[#This Row],[1]:[20]])","v":0}]
[null,2,"Руководитель в критических ситуациях, как правило, переходит на более жесткие методы управления.",3,0,1,{"$f":"IF(TESTED_COUNT>0,INT(dbTest[[#This Row],[Итог]]/TESTED_COUNT*100+0.5),0)","v":0},{"$f":"SUM(dbTest[[#This Row],[1]:[20]])","v":0}]
[null,2,"Руководитель в критических ситуациях не меняет своих способов руководства.",1,0,3,{"$f":"IF(TESTED_COUNT>0,INT(dbTest[[#This Row],[Итог]]/TESTED_COUNT*100+0.5),0)","v":0},{"$f":"SUM(dbTest[[#This Row],[1]:[20]])","v":0}]
[null,2,"Руководитель в критических ситуациях не обходится без помощи вышестоящих руководителей.",1,3,1,{"$f":"IF(TESTED_COUNT>0,INT(dbTest[[#This Row],[Итог]]/TESTED_COUNT*100+0.5),0)","v":0},{"$f":"SUM(dbTest[[#This Row],[1]:[20]])","v":0}]
[null,2,"Руководитель сталкиваясь с трудностями, начинает более тесно взаимодействовать с подчинёнными.",1,2,1,{"$f":"IF(TESTED_COUNT>0,INT(dbTest[[#This Row],[Итог]]/TESTED_COUNT*100+0.5),0)","v":0},{"$f":"SUM(dbTest[[#This Row],[1]:[20]])","v":0}]
[null,2,"Руководитель в критических ситуациях плохо справляется со своими обязанностями.",1,3,0,{"$f":"IF(TESTED_COUNT>0,INT(dbTest[[#This Row],[Итог]]/TESTED_COUNT*100+0.5),0)","v":0},{"$f":"SUM(dbTest[[#This Row],[1]:[20]])","v":0}]
[null,3,"Руководитель недостаточно общительный человек, с людьми разговаривает мало.",3,0,0,{"$f":"IF(TESTED_COUNT>0,INT(dbTest[[#This Row],[Итог]]/TESTED_COUNT*100+0.5),0)","v":0},{"$f":"SUM(dbTest[[#This Row],[1]:[20]])","v":0}]
[null,3,"Руководитель регулярно общается с подчинёнными, говорит о положении дел в коллективе, о трудностях, которые предстоит преодолеть.",0,1,3,{"$f":"IF(TESTED_COUNT>0,INT(dbTest[[#This Row],[Итог]]/TESTED_COUNT*100+0.5),0)","v":0},{"$f":"SUM(dbTest[[#This Row],[1]:[20]])","v":0}]
[null,3,"Руководитель умеет общаться, но специально ограничивает общение с подчинёнными, держится от них на расстоянии.",3,1,0,{"$f":"IF(TESTED_COUNT>0,INT(dbTest[[#This Row],[Итог]]/TESTED_COUNT*100+0.5),0)","v":0},{"$f":"SUM(dbTest[[#This Row],[1]:[20]])","v":0}]
[null,3,"Руководитель старается общаться с подчинёнными, но при этом испытывает трудности в общении.",0,2,1,{"$f":"IF(TESTED_COUNT>0,INT(dbTest[[#This Row],[Итог]]/TESTED_COUNT*100+0.5),0)","v":0},{"$f":"SUM(dbTest[[#This Row],[1]:[20]])","v":0}]
[null,3,"Руководитель общается в основном с активом рабочей группы.",2,1,0,{"$f":"IF(TESTED_COUNT>0,INT(dbTest[[#This Row],[Итог]]/TESTED_COUNT*100+0.5),0)","v":0},{"$f":"SUM(dbTest[[#This Row],[1]:[20]])","v":0}]
[null,4,"В отсутствие руководителя подчинённые работают хуже.",3,0,1,{"$f":"IF(TESTED_COUNT>0,INT(dbTest[[#This Row],[Итог]]/TESTED_COUNT*100+0.5),0)","v":0},{"$f":"SUM(dbTest[[#This Row],[1]:[20]])","v":0}]
[null,4,"Рабочая группа не снижает продуктивности, если руководитель временно покидает её.",1,0,3,{"$f":"IF(TESTED_COUNT>0,INT(dbTest[[#This Row],[Итог]]/TESTED_COUNT*100+0.5),0)","v":0},{"$f":"SUM(dbTest[[#This Row],[1]:[20]])","v":0}]
[null,4,"Подчинённые постоянно работают не в полную силу, при другом руководителе могли бы сделать больше.",2,3,0,{"$f":"IF(TESTED_COUNT>0,INT(dbTest[[#This Row],[Итог]]/TESTED_COUNT*100+0.5),0)","v":0},{"$f":"SUM(dbTest[[#This Row],[1]:[20]])","v":0}]
[null,4,"Продуктивность работы повышается в отсутствие руководителя.",3,2,0,{"$f":"IF(TESTED_COUNT>0,INT(dbTest[[#This Row],[Итог]]/TESTED_COUNT*100+0.5),0)","v":0},{"$f":"SUM(dbTest[[#This Row],[1]:[20]])","v":0}]
[null,4,"В отсутствие руководителя рабочая группа работает с переменным успехом.",1,2,1,{"$f":"IF(TESTED_COUNT>0,INT(dbTest[[#This Row],[Итог]]/TESTED_COUNT*100+0.5),0)","v":0},{"$f":"SUM(dbTest[[#This Row],[1]:[20]])","v":0}]
[null,5,"Руководитель сам обращается за советом к подчинённым.",0,1,3,{"$f":"IF(TESTED_COUNT>0,INT(dbTest[[#This Row],[Итог]]/TESTED_COUNT*100+0.5),0)","v":0},{"$f":"SUM(dbTest[[#This Row],[1]:[20]])","v":0}]
[null,5,"Руководитель не допускает, чтобы подчинённые советовали и тем более возражали ему.",3,0,0,{"$f":"IF(TESTED_COUNT>0,INT(dbTest[[#This Row],[Итог]]/TESTED_COUNT*100+0.5),0)","v":0},{"$f":"SUM(dbTest[[#This Row],[1]:[20]])","v":0}]
[null,5,"Подчинённые не только советуют, но могут давать указания своему руководителю.",0,3,0,{"$f":"IF(TESTED_COUNT>0,INT(dbTest[[#This Row],[Итог]]/TESTED_COUNT*100+0.5),0)","v":0},{"$f":"SUM(dbTest[[#This Row],[1]:[20]])","v":0}]
[null,5,"Руководитель советуется даже тогда, когда обстоятельства не особенно требуют этого.",0,3,0,{"$f":"IF(TESTED_COUNT>0,INT(dbTest[[#This Row],[Итог]]/TESTED_COUNT*100+0.5),0)","v":0},{"$f":"SUM(dbTest[[#This Row],[1]:[20]])","v":0}]
[null,5,"Если подчинённые знают, как лучше выполнить работу, они говорят об этом руководителю.",0,0,3,{"$f":"IF(TESTED_COUNT>0,INT(dbTest[[#This Row],[Итог]]/TESTED_COUNT*100+0.5),0)","v":0},{"$f":"SUM(dbTest[[#This Row],[1]:[20]])","v":0}]
[null,6,"Руководитель контролирует работу своих подчинённых от случая к случаю.",0,3,0,{"$f":"IF(TESTED_COUNT>0,INT(dbTest[[#This Row],[Итог]]/TESTED_COUNT*100+0.5),0)","v":0},{"$f":"SUM(dbTest[[#This Row],[1]:[20]])","v":0}]
[null,6,"Руководитель всегда очень строго контролирует работу своих подчинённых и рабочей группы в целом.",3,0,3,{"$f":"IF(TESTED_COUNT>0,INT(dbTest[[#This Row],[Итог]]/TESTED_COUNT*100+0.5),0)","v":0},{"$f":"SUM(dbTest[[#This Row],[1]:[20]])","v":0}]
[null,6,"Контролируя работу, руководитель всегда оценивает её, замечает положительные результаты, хвалит подчинённых.",0,0,3,{"$f":"IF(TESTED_COUNT>0,INT(dbTest[[#This Row],[Итог]]/TESTED_COUNT*100+0.5),0)","v":0},{"$f":"SUM(dbTest[[#This Row],[1]:[20]])","v":0}]
[null,6,"Контролируя, руководитель обязательно выискивает недостатки в работе.",3,0,0,{"$f":"IF(TESTED_COUNT>0,INT(dbTest[[#This Row],[Итог]]/TESTED_COUNT*100+0.5),0)","v":0},{"$f":"SUM(dbTest[[#This Row],[1]:[20]])","v":0}]
[null,6,"Руководитель нередко вмешивается в работу своих подчинённых.",2,0,0,{"$f":"IF(TESTED_COUNT>0,INT(dbTest[[#This Row],[Итог]]/TESTED_COUNT*100+0.5),0)","v":0},{"$f":"SUM(dbTest[[#This Row],[1]:[20]])","v":0}]
[null,7,"Руководителя интересует только выполнение плана, а не отношение людей друг к другу.",3,1,0,{"$f":"IF(TESTED_COUNT>0,INT(dbTest[[#This Row],[Итог]]/TESTED_COUNT*100+0.5),0)","v":0},{"$f":"SUM(dbTest[[#This Row],[1]:[20]])","v":0}]
[null,7,"Решая поставленные задачи, руководитель старается создать хорошие отношения между людьми в коллективе.",0,2,3,{"$f":"IF(TESTED_COUNT>0,INT(dbTest[[#This Row],[Итог]]/TESTED_COUNT*100+0.5),0)","v":0},{"$f":"SUM(dbTest[[#This Row],[1]:[20]])","v":0}]
[null,7,"В целом, руководитель в работе не заинтересован, подходит к делу формально.",0,3,0,{"$f":"IF(TESTED_COUNT>0,INT(dbTest[[#This Row],[Итог]]/TESTED_COUNT*100+0.5),0)","v":0},{"$f":"SUM(dbTest[[#This Row],[1]:[20]])","v":0}]
[null,7,"Руководитель больше внимания уделяет налаживанию отношений в коллективе, а не выполнению рабочих заданий.",0,3,0,{"$f":"IF(TESTED_COUNT>0,INT(dbTest[[#This Row],[Итог]]/TESTED_COUNT*100+0.5),0)","v":0},{"$f":"SUM(dbTest[[#This Row],[1]:[20]])","v":0}]
[null,7,"Когда необходимо, руководитель защищает интересы своих подчиненных.",0,0,3,{"$f":"IF(TESTED_COUNT>0,INT(dbTest[[#This Row],[Итог]]/TESTED_COUNT*100+0.5),0)","v":0},{"$f":"SUM(dbTest[[#This Row],[1]:[20]])","v":0}]
[null,8,"Руководитель умеет приказывать так, что хочется выполнять порученное дело.",0,0,3,{"$f":"IF(TESTED_COUNT>0,INT(dbTest[[#This Row],[Итог]]/TESTED_COUNT*100+0.5),0)","v":0},{"$f":"SUM(dbTest[[#This Row],[1]:[20]])","v":0}]
[null,8,"Приказывать руководитель не умеет.",0,3,0,{"$f":"IF(TESTED_COUNT>0,INT(dbTest[[#This Row],[Итог]]/TESTED_COUNT*100+0.5),0)","v":0},{"$f":"SUM(dbTest[[#This Row],[1]:[20]])","v":0}]
[null,8,"Просьба руководителя не отличается от приказа.",3,0,0,{"$f":"IF(TESTED_COUNT>0,INT(dbTest[[#This Row],[Итог]]/TESTED_COUNT*100+0.5),0)","v":0},{"$f":"SUM(dbTest[[#This Row],[1]:[20]])","v":0}]
[null,8,"Приказы принимаются, но выполняются недостаточно хорошо и быстро.",2,3,0,{"$f":"IF(TESTED_COUNT>0,INT(dbTest[[#This Row],[Итог]]/TESTED_COUNT*100+0.5),0)","v":0},{"$f":"SUM(dbTest[[#This Row],[1]:[20]])","v":0}]
[null,8,"Приказы руководителя вызывают у подчинённых недовольство.",3,2,0,{"$f":"IF(TESTED_COUNT>0,INT(dbTest[[#This Row],[Итог]]/TESTED_COUNT*100+0.5),0)","v":0},{"$f":"SUM(dbTest[[#This Row],[1]:[20]])","v":0}]
[null,9,"На критику руководитель обычно не обижается, прислушивается к ней.",0,0,3,{"$f":"IF(TESTED_COUNT>0,INT(dbTest[[#This Row],[Итог]]/TESTED_COUNT*100+0.5),0)","v":0},{"$f":"SUM(dbTest[[#This Row],[1]:[20]])","v":0}]
[null,9,"Критику руководитель выслушивает, даже обещает принять меры, но ничего не делает.",0,3,0,{"$f":"IF(TESTED_COUNT>0,INT(dbTest[[#This Row],[Итог]]/TESTED_COUNT*100+0.5),0)","v":0},{"$f":"SUM(dbTest[[#This Row],[1]:[20]])","v":0}]
[null,9,"Руководитель не любит, когда его критикуют, и не старается скрыть этого.",3,1,0,{"$f":"IF(TESTED_COUNT>0,INT(dbTest[[#This Row],[Итог]]/TESTED_COUNT*100+0.5),0)","v":0},{"$f":"SUM(dbTest[[#This Row],[1]:[20]])","v":0}]
[null,9,"Руководитель принимает критику только со стороны вышестоящих руководителей.",3,2,0,{"$f":"IF(TESTED_COUNT>0,INT(dbTest[[#This Row],[Итог]]/TESTED_COUNT*100+0.5),0)","v":0},{"$f":"SUM(dbTest[[#This Row],[1]:[20]])","v":0}]
[null,9,"Руководитель не реагирует на критику.",3,2,0,{"$f":"IF(TESTED_COUNT>0,INT(dbTest[[#This Row],[Итог]]/TESTED_COUNT*100+0.5),0)","v":0},{"$f":"SUM(dbTest[[#This Row],[1]:[20]])","v":0}]
[null,10,"Руководитель сам решает даже те вопросы, с которыми не совсем знаком.",3,0,0,{"$f":"IF(TESTED_COUNT>0,INT(dbTest[[#This Row],[Итог]]/TESTED_COUNT*100+0.5),0)","v":0},{"$f":"SUM(dbTest[[#This Row],[1]:[20]])","v":0}]
[null,10,"Если руководитель чего-то не знает, то он не боится это показать и обращается за помощью к другим.",0,0,3,{"$f":"IF(TESTED_COUNT>0,INT(dbTest[[#This Row],[Итог]]/TESTED_COUNT*100+0.5),0)","v":0},{"$f":"SUM(dbTest[[#This Row],[1]:[20]])","v":0}]
[null,10,"Можно сказать, что руководитель не стремится восполнить недостаток в знаниях.",0,3,0,{"$f":"IF(TESTED_COUNT>0,INT(dbTest[[#This Row],[Итог]]/TESTED_COUNT*100+0.5),0)","v":0},{"$f":"SUM(dbTest[[#This Row],[1]:[20]])","v":0}]
[null,10,"Когда руководитель чего-то не знает, то скрывает это и старается самостоятельно восполнить недостаток в знаниях.",3,1,0,{"$f":"IF(TESTED_COUNT>0,INT(dbTest[[#This Row],[Итог]]/TESTED_COUNT*100+0.5),0)","v":0},{"$f":"SUM(dbTest[[#This Row],[1]:[20]])","v":0}]
[null,10,"Если руководитель не знает, как решить вопрос или выполнить работу, то поручает это своим подчиненным.",1,3,1,{"$f":"IF(TESTED_COUNT>0,INT(dbTest[[#This Row],[Итог]]/TESTED_COUNT*100+0.5),0)","v":0},{"$f":"SUM(dbTest[[#This Row],[1]:[20]])","v":0}]
[null,11,"Складывается впечатление, что руководитель боится отвечать за свои действия, старается уменьшить свою ответственность.",0,3,0,{"$f":"IF(TESTED_COUNT>0,INT(dbTest[[#This Row],[Итог]]/TESTED_COUNT*100+0.5),0)","v":0},{"$f":"SUM(dbTest[[#This Row],[1]:[20]])","v":0}]
[null,11,"Ответственность руководитель распределяет между собой и своими подчиненными.",2,3,0,{"$f":"IF(TESTED_COUNT>0,INT(dbTest[[#This Row],[Итог]]/TESTED_COUNT*100+0.5),0)","v":0},{"$f":"SUM(dbTest[[#This Row],[1]:[20]])","v":0}]
[null,11,"Всю ответственность руководитель возлагает только на себя.",1,0,3,{"$f":"IF(TESTED_COUNT>0,INT(dbTest[[#This Row],[Итог]]/TESTED_COUNT*100+0.5),0)","v":0},{"$f":"SUM(dbTest[[#This Row],[1]:[20]])","v":0}]
[null,11,"Нередко руководитель подчеркивает ответственность вышестоящих руководителей, старается свою ответственность переложить на них.",2,3,0,{"$f":"IF(TESTED_COUNT>0,INT(dbTest[[#This Row],[Итог]]/TESTED_COUNT*100+0.5),0)","v":0},{"$f":"SUM(dbTest[[#This Row],[1]:[20]])","v":0}]
[null,11,"Свою ответсвенность за результат руководитель старается переложить на подчинённых.",2,3,0,{"$f":"IF(TESTED_COUNT>0,INT(dbTest[[#This Row],[Итог]]/TESTED_COUNT*100+0.5),0)","v":0},{"$f":"SUM(dbTest[[#This Row],[1]:[20]])","v":0}]
[null,12,"Руководитель старается, чтобы его подчинённые были квалифицированными специалистами.",0,0,3,{"$f":"IF(TESTED_COUNT>0,INT(dbTest[[#This Row],[Итог]]/TESTED_COUNT*100+0.5),0)","v":0},{"$f":"SUM(dbTest[[#This Row],[1]:[20]])","v":0}]
[null,12,"Руководитель добивается безотказного подчинения работников, хотя по тем или иным вопросам оказывается некомпетентным.",3,0,0,{"$f":"IF(TESTED_COUNT>0,INT(dbTest[[#This Row],[Итог]]/TESTED_COUNT*100+0.5),0)","v":0},{"$f":"SUM(dbTest[[#This Row],[1]:[20]])","v":0}]
[null,12,"В целом складывается впечатление, что руководителю безразличен уровень квалификации своих подчинённых.",1,3,0,{"$f":"IF(TESTED_COUNT>0,INT(dbTest[[#This Row],[Итог]]/TESTED_COUNT*100+0.5),0)","v":0},{"$f":"SUM(dbTest[[#This Row],[1]:[20]])","v":0}]
[null,12,"Руководитель осторожен по отношению к своим подчинённым (заместителям), потому что боится за свое положение.",2,3,0,{"$f":"IF(TESTED_COUNT>0,INT(dbTest[[#This Row],[Итог]]/TESTED_COUNT*100+0.5),0)","v":0},{"$f":"SUM(dbTest[[#This Row],[1]:[20]])","v":0}]
[null,12,"Руководитель не желает иметь рядом наиболее квалифицированных специалистов.",2,3,0,{"$f":"IF(TESTED_COUNT>0,INT(dbTest[[#This Row],[Итог]]/TESTED_COUNT*100+0.5),0)","v":0},{"$f":"SUM(dbTest[[#This Row],[1]:[20]])","v":0}]
[null,13,"Подчинённые довольны, когда руководитель отсутствует: они испытывают некоторое облегчение.",3,2,0,{"$f":"IF(TESTED_COUNT>0,INT(dbTest[[#This Row],[Итог]]/TESTED_COUNT*100+0.5),0)","v":0},{"$f":"SUM(dbTest[[#This Row],[1]:[20]])","v":0}]
[null,13,"С руководителем работать интересно, поэтому подчинённые ожидают его возвращения (из командировки, отпуска и т. д.).",0,0,3,{"$f":"IF(TESTED_COUNT>0,INT(dbTest[[#This Row],[Итог]]/TESTED_COUNT*100+0.5),0)","v":0},{"$f":"SUM(dbTest[[#This Row],[1]:[20]])","v":0}]
[null,13,"Отсутствие руководителя на рабочем месте не замечается подчинёнными.",0,3,0,{"$f":"IF(TESTED_COUNT>0,INT(dbTest[[#This Row],[Итог]]/TESTED_COUNT*100+0.5),0)","v":0},{"$f":"SUM(dbTest[[#This Row],[1]:[20]])","v":0}]
[null,13,"Подчинённые, как правило, сожалеют о длительном отсутствии руководителя.",0,0,3,{"$f":"IF(TESTED_COUNT>0,INT(dbTest[[#This Row],[Итог]]/TESTED_COUNT*100+0.5),0)","v":0},{"$f":"SUM(dbTest[[#This Row],[1]:[20]])","v":0}]
[null,13,"Сначала отсутствие руководителя чувствуется подчинёнными, а затем быстро забывается.",2,3,0,{"$f":"IF(TESTED_COUNT>0,INT(dbTest[[#This Row],[Итог]]/TESTED_COUNT*100+0.5),0)","v":0},{"$f":"SUM(dbTest[[#This Row],[1]:[20]])","v":0}]
[null,14,"Руководителю нередко приходится уговаривать своих подчиненных выполнить то или иное задание.",0,3,0,{"$f":"IF(TESTED_COUNT>0,INT(dbTest[[#This Row],[Итог]]/TESTED_COUNT*100+0.5),0)","v":0},{"$f":"SUM(dbTest[[#This Row],[1]:[20]])","v":0}]
[null,14,"Руководитель всегда приказывает, наставляет, но никогда не объясняет и не просит.",3,0,0,{"$f":"IF(TESTED_COUNT>0,INT(dbTest[[#This Row],[Итог]]/TESTED_COUNT*100+0.5),0)","v":0},{"$f":"SUM(dbTest[[#This Row],[1]:[20]])","v":0}]
[null,14,"Руководитель обращается к подчинённым с поручениями, чётко объясняя задачу и, при необходимости, советуясь с ними, как лучше её выполнить.",0,0,3,{"$f":"IF(TESTED_COUNT>0,INT(dbTest[[#This Row],[Итог]]/TESTED_COUNT*100+0.5),0)","v":0},{"$f":"SUM(dbTest[[#This Row],[1]:[20]])","v":0}]
[null,14,"Замечания руководителя, как правило, справедливы.",1,0,3,{"$f":"IF(TESTED_COUNT>0,INT(dbTest[[#This Row],[Итог]]/TESTED_COUNT*100+0.5),0)","v":0},{"$f":"SUM(dbTest[[#This Row],[1]:[20]])","v":0}]
[null,14,"Чтобы не портить отношений, руководитель старается не делать замечаний своим подчинённым даже когда это необходимо.",0,3,0,{"$f":"IF(TESTED_COUNT>0,INT(dbTest[[#This Row],[Итог]]/TESTED_COUNT*100+0.5),0)","v":0},{"$f":"SUM(dbTest[[#This Row],[1]:[20]])","v":0}]
[null,15,"Руководитель всегда обращается к подчинённым вежливо и доброжелательно.",1,2,3,{"$f":"IF(TESTED_COUNT>0,INT(dbTest[[#This Row],[Итог]]/TESTED_COUNT*100+0.5),0)","v":0},{"$f":"SUM(dbTest[[#This Row],[1]:[20]])","v":0}]
[null,15,"По отношению к подчинённым руководитель бывает нетактичным и даже грубым.",3,0,0,{"$f":"IF(TESTED_COUNT>0,INT(dbTest[[#This Row],[Итог]]/TESTED_COUNT*100+0.5),0)","v":0},{"$f":"SUM(dbTest[[#This Row],[1]:[20]])","v":0}]
[null,15,"В общении с подчинёнными руководитель часто проявляет равнодушие.",3,1,0,{"$f":"IF(TESTED_COUNT>0,INT(dbTest[[#This Row],[Итог]]/TESTED_COUNT*100+0.5),0)","v":0},{"$f":"SUM(dbTest[[#This Row],[1]:[20]])","v":0}]
[null,15,"Создается впечатление, что вежливость руководителя неискренняя.",2,3,0,{"$f":"IF(TESTED_COUNT>0,INT(dbTest[[#This Row],[Итог]]/TESTED_COUNT*100+0.5),0)","v":0},{"$f":"SUM(dbTest[[#This Row],[1]:[20]])","v":0}]
[null,15,"Характер общения с подчинёнными у руководителя часто меняется.",1,2,0,{"$f":"IF(TESTED_COUNT>0,INT(dbTest[[#This Row],[Итог]]/TESTED_COUNT*100+0.5),0)","v":0},{"$f":"SUM(dbTest[[#This Row],[1]:[20]])","v":0}]
[null,16,"Руководитель привлекает к принятию решений рядовых членов рабочей группы.",0,1,3,{"$f":"IF(TESTED_COUNT>0,INT(dbTest[[#This Row],[Итог]]/TESTED_COUNT*100+0.5),0)","v":0},{"$f":"SUM(dbTest[[#This Row],[1]:[20]])","v":0}]
[null,16,"Нередко руководитель перекладывает свою ответственность по принятию решений на других.",0,3,0,{"$f":"IF(TESTED_COUNT>0,INT(dbTest[[#This Row],[Итог]]/TESTED_COUNT*100+0.5),0)","v":0},{"$f":"SUM(dbTest[[#This Row],[1]:[20]])","v":0}]
[null,16,"Управленческие функции иногда передаются руководителем подчинённым, но чётко не закрепляются за ними и их распределение может меняться.",1,2,0,{"$f":"IF(TESTED_COUNT>0,INT(dbTest[[#This Row],[Итог]]/TESTED_COUNT*100+0.5),0)","v":0},{"$f":"SUM(dbTest[[#This Row],[1]:[20]])","v":0}]
[null,16,"Бывает, что управленческие функции практически принимают на себя не руководитель, а другие члены коллектива.",0,3,0,{"$f":"IF(TESTED_COUNT>0,INT(dbTest[[#This Row],[Итог]]/TESTED_COUNT*100+0.5),0)","v":0},{"$f":"SUM(dbTest[[#This Row],[1]:[20]])","v":0}]
[null,16,"Руководитель старается не передавать никому из подчинённых каких-либо управленческих функций.",3,1,0,{"$f":"IF(TESTED_COUNT>0,INT(dbTest[[#This Row],[Итог]]/TESTED_COUNT*100+0.5),0)","v":0},{"$f":"SUM(dbTest[[#This Row],[1]:[20]])","v":0}]
[null,17,"Руководитель стремится к показной дисциплине и «идеальному» подчинению.",3,0,0,{"$f":"IF(TESTED_COUNT>0,INT(dbTest[[#This Row],[Итог]]/TESTED_COUNT*100+0.5),0)","v":0},{"$f":"SUM(dbTest[[#This Row],[1]:[20]])","v":0}]
[null,17,"Руководитель не может влиять на трудовую дисциплину.",0,3,0,{"$f":"IF(TESTED_COUNT>0,INT(dbTest[[#This Row],[Итог]]/TESTED_COUNT*100+0.5),0)","v":0},{"$f":"SUM(dbTest[[#This Row],[1]:[20]])","v":0}]
[null,17,"Руководитель умеет поддерживать дисциплину и порядок.",2,0,3,{"$f":"IF(TESTED_COUNT>0,INT(dbTest[[#This Row],[Итог]]/TESTED_COUNT*100+0.5),0)","v":0},{"$f":"SUM(dbTest[[#This Row],[1]:[20]])","v":0}]
[null,17,"Трудовая дисциплина в рабочей группе «хорошая», так как подчиненные боятся руководителя.",3,0,0,{"$f":"IF(TESTED_COUNT>0,INT(dbTest[[#This Row],[Итог]]/TESTED_COUNT*100+0.5),0)","v":0},{"$f":"SUM(dbTest[[#This Row],[1]:[20]])","v":0}]
[null,17,"Руководитель недостаточно пресекает нарушения дисциплины.",0,3,0,{"$f":"IF(TESTED_COUNT>0,INT(dbTest[[#This Row],[Итог]]/TESTED_COUNT*100+0.5),0)","v":0},{"$f":"SUM(dbTest[[#This Row],[1]:[20]])","v":0}]
[null,18,"Руководитель обращается с подчинёнными только по деловым вопросам.",3,0,0,{"$f":"IF(TESTED_COUNT>0,INT(dbTest[[#This Row],[Итог]]/TESTED_COUNT*100+0.5),0)","v":0},{"$f":"SUM(dbTest[[#This Row],[1]:[20]])","v":0}]
[null,18,"Разговаривая с подчиненными, руководитель создаёт видимость открытого и душевного человека.",1,3,0,{"$f":"IF(TESTED_COUNT>0,INT(dbTest[[#This Row],[Итог]]/TESTED_COUNT*100+0.5),0)","v":0},{"$f":"SUM(dbTest[[#This Row],[1]:[20]])","v":0}]
[null,18,"Инициатива общения исходит от подчинённых, руководитель редко заговаривает сам.",3,1,0,{"$f":"IF(TESTED_COUNT>0,INT(dbTest[[#This Row],[Итог]]/TESTED_COUNT*100+0.5),0)","v":0},{"$f":"SUM(dbTest[[#This Row],[1]:[20]])","v":0}]
[null,18,"Нередко в общении с руководителем трудно понять его мнение по тем или иным вопросам, и его требования к подчинённым.",1,3,0,{"$f":"IF(TESTED_COUNT>0,INT(dbTest[[#This Row],[Итог]]/TESTED_COUNT*100+0.5),0)","v":0},{"$f":"SUM(dbTest[[#This Row],[1]:[20]])","v":0}]
[null,18,"Руководитель старается поддерживать с подчинёнными ровные отношения без выделения «любимчиков».",1,0,3,{"$f":"IF(TESTED_COUNT>0,INT(dbTest[[#This Row],[Итог]]/TESTED_COUNT*100+0.5),0)","v":0},{"$f":"SUM(dbTest[[#This Row],[1]:[20]])","v":0}]
[null,19,"Руководитель единолично вырабатывает решения или отменяет их.",3,0,0,{"$f":"IF(TESTED_COUNT>0,INT(dbTest[[#This Row],[Итог]]/TESTED_COUNT*100+0.5),0)","v":0},{"$f":"SUM(dbTest[[#This Row],[1]:[20]])","v":0}]
[null,19,"Руководитель редко берётся за выполнение сложного дела, а скорее всего уходит от этого.",1,3,0,{"$f":"IF(TESTED_COUNT>0,INT(dbTest[[#This Row],[Итог]]/TESTED_COUNT*100+0.5),0)","v":0},{"$f":"SUM(dbTest[[#This Row],[1]:[20]])","v":0}]
[null,19,"Руководитель старается все решать вместе с подчинёнными, единолично решает только самые срочные и оперативные вопросы.",0,0,3,{"$f":"IF(TESTED_COUNT>0,INT(dbTest[[#This Row],[Итог]]/TESTED_COUNT*100+0.5),0)","v":0},{"$f":"SUM(dbTest[[#This Row],[1]:[20]])","v":0}]
[null,19,"Руководитель решает только те вопросы, которые возникают сами, не старается заранее предусмотреть их решение.",1,3,0,{"$f":"IF(TESTED_COUNT>0,INT(dbTest[[#This Row],[Итог]]/TESTED_COUNT*100+0.5),0)","v":0},{"$f":"SUM(dbTest[[#This Row],[1]:[20]])","v":0}]
[null,19,"Руководитель берётся за решение в основном мелких вопросов.",1,3,0,{"$f":"IF(TESTED_COUNT>0,INT(dbTest[[#This Row],[Итог]]/TESTED_COUNT*100+0.5),0)","v":0},{"$f":"SUM(dbTest[[#This Row],[1]:[20]])","v":0}]
[null,20,"В рабочей группе недостаточно развиты взаимопомощь и взаимное доверие.",3,2,0,{"$f":"IF(TESTED_COUNT>0,INT(dbTest[[#This Row],[Итог]]/TESTED_COUNT*100+0.5),0)","v":0},{"$f":"SUM(dbTest[[#This Row],[1]:[20]])","v":0}]
[null,20,"Руководитель старается, чтобы у подчиненных на работе было хорошее настроение.",0,2,3,{"$f":"IF(TESTED_COUNT>0,INT(dbTest[[#This Row],[Итог]]/TESTED_COUNT*100+0.5),0)","v":0},{"$f":"SUM(dbTest[[#This Row],[1]:[20]])","v":0}]
[null,20,"В рабочей группе наблюдается повышенная текучесть кадров: люди нередко уходят и не жалеют об этом.",3,2,0,{"$f":"IF(TESTED_COUNT>0,INT(dbTest[[#This Row],[Итог]]/TESTED_COUNT*100+0.5),0)","v":0},{"$f":"SUM(dbTest[[#This Row],[1]:[20]])","v":0}]
[null,20,"Люди в рабочей группе относятся друг к другу чутко, по-дружески.",0,1,3,{"$f":"IF(TESTED_COUNT>0,INT(dbTest[[#This Row],[Итог]]/TESTED_COUNT*100+0.5),0)","v":0},{"$f":"SUM(dbTest[[#This Row],[1]:[20]])","v":0}]
[null,20,"В присутствии руководителя подчинённым постоянно приходится работать в напряжении.",3,1,0,{"$f":"IF(TESTED_COUNT>0,INT(dbTest[[#This Row],[Итог]]/TESTED_COUNT*100+0.5),0)","v":0},{"$f":"SUM(dbTest[[#This Row],[1]:[20]])","v":0}]
[null,21,"Руководитель способствует тому, чтобы подчинённые работали самостоятельно.",1,0,3,{"$f":"IF(TESTED_COUNT>0,INT(dbTest[[#This Row],[Итог]]/TESTED_COUNT*100+0.5),0)","v":0},{"$f":"SUM(dbTest[[#This Row],[1]:[20]])","v":0}]
[null,21,"Иногда руководитель навязывает свое мнение, а говорит, что это мнение большинства.",3,1,0,{"$f":"IF(TESTED_COUNT>0,INT(dbTest[[#This Row],[Итог]]/TESTED_COUNT*100+0.5),0)","v":0},{"$f":"SUM(dbTest[[#This Row],[1]:[20]])","v":0}]
[null,21,"Подчинённые работают больше по указаниям руководителя, нежели самостоятельно.",3,0,0,{"$f":"IF(TESTED_COUNT>0,INT(dbTest[[#This Row],[Итог]]/TESTED_COUNT*100+0.5),0)","v":0},{"$f":"SUM(dbTest[[#This Row],[1]:[20]])","v":0}]
[null,21,"Подчинённые предоставлены самим себе.",0,3,0,{"$f":"IF(TESTED_COUNT>0,INT(dbTest[[#This Row],[Итог]]/TESTED_COUNT*100+0.5),0)","v":0},{"$f":"SUM(dbTest[[#This Row],[1]:[20]])","v":0}]
[null,21,"Руководитель предоставляет подчинённым самостоятельность лишь время от времени.",3,0,0,{"$f":"IF(TESTED_COUNT>0,INT(dbTest[[#This Row],[Итог]]/TESTED_COUNT*100+0.5),0)","v":0},{"$f":"SUM(dbTest[[#This Row],[1]:[20]])","v":0}]
[null,22,"Руководитель регулярно советуется с подчинёнными, особенно с опытными работниками.",0,0,3,{"$f":"IF(TESTED_COUNT>0,INT(dbTest[[#This Row],[Итог]]/TESTED_COUNT*100+0.5),0)","v":0},{"$f":"SUM(dbTest[[#This Row],[1]:[20]])","v":0}]
[null,22,"Руководитель советуется с подчиненными только в сложной ситуации.",3,1,0,{"$f":"IF(TESTED_COUNT>0,INT(dbTest[[#This Row],[Итог]]/TESTED_COUNT*100+0.5),0)","v":0},{"$f":"SUM(dbTest[[#This Row],[1]:[20]])","v":0}]
[null,22,"Руководитель обычно советуется со своими заместителями, но не с рядовыми подчинёнными.",3,2,1,{"$f":"IF(TESTED_COUNT>0,INT(dbTest[[#This Row],[Итог]]/TESTED_COUNT*100+0.5),0)","v":0},{"$f":"SUM(dbTest[[#This Row],[1]:[20]])","v":0}]
[null,22,"Руководитель с удовольствием прислушивается к мнению коллег.",0,0,3,{"$f":"IF(TESTED_COUNT>0,INT(dbTest[[#This Row],[Итог]]/TESTED_COUNT*100+0.5),0)","v":0},{"$f":"SUM(dbTest[[#This Row],[1]:[20]])","v":0}]
[null,22,"Руководитель советуется только с вышестоящими руководителями.",3,1,0,{"$f":"IF(TESTED_COUNT>0,INT(dbTest[[#This Row],[Итог]]/TESTED_COUNT*100+0.5),0)","v":0},{"$f":"SUM(dbTest[[#This Row],[1]:[20]])","v":0}]
[null,23,"Инициатива подчиненных руководителем не принимается.",3,0,0,{"$f":"IF(TESTED_COUNT>0,INT(dbTest[[#This Row],[Итог]]/TESTED_COUNT*100+0.5),0)","v":0},{"$f":"SUM(dbTest[[#This Row],[1]:[20]])","v":0}]
[null,23,"Руководитель считает, что лучше сделать меньше (тогда и меньше спросят).",2,3,0,{"$f":"IF(TESTED_COUNT>0,INT(dbTest[[#This Row],[Итог]]/TESTED_COUNT*100+0.5),0)","v":0},{"$f":"SUM(dbTest[[#This Row],[1]:[20]])","v":0}]
[null,23,"Руководитель поддерживает инициативу подчиненных.",0,0,3,{"$f":"IF(TESTED_COUNT>0,INT(dbTest[[#This Row],[Итог]]/TESTED_COUNT*100+0.5),0)","v":0},{"$f":"SUM(dbTest[[#This Row],[1]:[20]])","v":0}]
[null,23,"Руководитель не может действовать сам, а ждет «подталкивания» со стороны.",0,3,0,{"$f":"IF(TESTED_COUNT>0,INT(dbTest[[#This Row],[Итог]]/TESTED_COUNT*100+0.5),0)","v":0},{"$f":"SUM(dbTest[[#This Row],[1]:[20]])","v":0}]
[null,23,"Инициативы руководитель не проявляет ни сам, ни его подчиненные.",1,3,0,{"$f":"IF(TESTED_COUNT>0,INT(dbTest[[#This Row],[Итог]]/TESTED_COUNT*100+0.5),0)","v":0},{"$f":"SUM(dbTest[[#This Row],[1]:[20]])","v":0}]
[null,24,"Любимый лозунг руководителя: «Давай, давай!».",3,1,0,{"$f":"IF(TESTED_COUNT>0,INT(dbTest[[#This Row],[Итог]]/TESTED_COUNT*100+0.5),0)","v":0},{"$f":"SUM(dbTest[[#This Row],[1]:[20]])","v":0}]
[null,24,"Руководитель требователен, но, одновременно, и справедлив.",1,0,3,{"$f":"IF(TESTED_COUNT>0,INT(dbTest[[#This Row],[Итог]]/TESTED_COUNT*100+0.5),0)","v":0},{"$f":"SUM(dbTest[[#This Row],[1]:[20]])","v":0}]
[null,24,"О руководителе можно сказать, что он бывает слишком строгим и даже придирчивым.",3,0,0,{"$f":"IF(TESTED_COUNT>0,INT(dbTest[[#This Row],[Итог]]/TESTED_COUNT*100+0.5),0)","v":0},{"$f":"SUM(dbTest[[#This Row],[1]:[20]])","v":0}]
[null,24,"Пожалуй, руководитель не очень требовательный человек.",0,3,0,{"$f":"IF(TESTED_COUNT>0,INT(dbTest[[#This Row],[Итог]]/TESTED_COUNT*100+0.5),0)","v":0},{"$f":"SUM(dbTest[[#This Row],[1]:[20]])","v":0}]
[null,24,"Руководитель требователен и к себе, и к другим.",2,0,3,{"$f":"IF(TESTED_COUNT>0,INT(dbTest[[#This Row],[Итог]]/TESTED_COUNT*100+0.5),0)","v":0},{"$f":"SUM(dbTest[[#This Row],[1]:[20]])","v":0}]
[null,25,"Руководитель, наверное, консервативен, потому что боится нового.",2,3,0,{"$f":"IF(TESTED_COUNT>0,INT(dbTest[[#This Row],[Итог]]/TESTED_COUNT*100+0.5),0)","v":0},{"$f":"SUM(dbTest[[#This Row],[1]:[20]])","v":0}]
[null,25,"Руководитель охотно поддерживает целесообразные нововведения.",1,0,3,{"$f":"IF(TESTED_COUNT>0,INT(dbTest[[#This Row],[Итог]]/TESTED_COUNT*100+0.5),0)","v":0},{"$f":"SUM(dbTest[[#This Row],[1]:[20]])","v":0}]
[null,25,"Поддерживая нововведения, руководитель с большим трудом меняет характер общения с людьми.",3,1,1,{"$f":"IF(TESTED_COUNT>0,INT(dbTest[[#This Row],[Итог]]/TESTED_COUNT*100+0.5),0)","v":0},{"$f":"SUM(dbTest[[#This Row],[1]:[20]])","v":0}]
[null,25,"У руководителя лучше получается с нововведениями вне работы: на отдыхе, в межличностных отношениях.",0,3,0,{"$f":"IF(TESTED_COUNT>0,INT(dbTest[[#This Row],[Итог]]/TESTED_COUNT*100+0.5),0)","v":0},{"$f":"SUM(dbTest[[#This Row],[1]:[20]])","v":0}]
[null,25,"Нововведения проходят мимо руководителя.",2,3,0,{"$f":"IF(TESTED_COUNT>0,INT(dbTest[[#This Row],[Итог]]/TESTED_COUNT*100+0.5),0)","v":0},{"$f":"SUM(dbTest[[#This Row],[1]:[20]])","v":0}]
[null,26,"В своей работе руководитель широко опирается на мнение своих подчинённых.",0,0,3,{"$f":"IF(TESTED_COUNT>0,INT(dbTest[[#This Row],[Итог]]/TESTED_COUNT*100+0.5),0)","v":0},{"$f":"SUM(dbTest[[#This Row],[1]:[20]])","v":0}]
[null,26,"Многие вопросы решаются коллективом на общем собрании.",0,0,3,{"$f":"IF(TESTED_COUNT>0,INT(dbTest[[#This Row],[Итог]]/TESTED_COUNT*100+0.5),0)","v":0},{"$f":"SUM(dbTest[[#This Row],[1]:[20]])","v":0}]
[null,26,"Некоторые важные дела решаются фактически без участия руководителя, его функции выполняют другие.",0,3,0,{"$f":"IF(TESTED_COUNT>0,INT(dbTest[[#This Row],[Итог]]/TESTED_COUNT*100+0.5),0)","v":0},{"$f":"SUM(dbTest[[#This Row],[1]:[20]])","v":0}]
[null,26,"Большинство вопросов решает за коллектив сам руководитель.",3,0,0,{"$f":"IF(TESTED_COUNT>0,INT(dbTest[[#This Row],[Итог]]/TESTED_COUNT*100+0.5),0)","v":0},{"$f":"SUM(dbTest[[#This Row],[1]:[20]])","v":0}]
[null,26,"Руководитель создаёт условия и поощряет проявляние инициативы у своих подчинённых.",0,0,3,{"$f":"IF(TESTED_COUNT>0,INT(dbTest[[#This Row],[Итог]]/TESTED_COUNT*100+0.5),0)","v":0},{"$f":"SUM(dbTest[[#This Row],[1]:[20]])","v":0}]
[null,27,"Руководителю безразлично, что о нём думают подчиненные.",3,2,0,{"$f":"IF(TESTED_COUNT>0,INT(dbTest[[#This Row],[Итог]]/TESTED_COUNT*100+0.5),0)","v":0},{"$f":"SUM(dbTest[[#This Row],[1]:[20]])","v":0}]
[null,27,"Никогда и ни в чём руководитель не проявляет своего превосходства над подчинёнными.",0,0,3,{"$f":"IF(TESTED_COUNT>0,INT(dbTest[[#This Row],[Итог]]/TESTED_COUNT*100+0.5),0)","v":0},{"$f":"SUM(dbTest[[#This Row],[1]:[20]])","v":0}]
[null,27,"Руководитель считает себя незаменимым в коллективе.",3,0,0,{"$f":"IF(TESTED_COUNT>0,INT(dbTest[[#This Row],[Итог]]/TESTED_COUNT*100+0.5),0)","v":0},{"$f":"SUM(dbTest[[#This Row],[1]:[20]])","v":0}]
[null,27,"Руководитель увлеченно занимается своим делом и не думает о том, как его оценивают.",1,0,3,{"$f":"IF(TESTED_COUNT>0,INT(dbTest[[#This Row],[Итог]]/TESTED_COUNT*100+0.5),0)","v":0},{"$f":"SUM(dbTest[[#This Row],[1]:[20]])","v":0}]
[null,27,"Руководитель излишне критичен по отношению к подчинённым.",3,1,0,{"$f":"IF(TESTED_COUNT>0,INT(dbTest[[#This Row],[Итог]]/TESTED_COUNT*100+0.5),0)","v":0},{"$f":"SUM(dbTest[[#This Row],[1]:[20]])","v":0}]